Department family,Entity,Date,Expense type,Expense area,Supplier,Transaction number, Amount 
Home Office,DBS - Disclosure & Barring Service,01/04/2016,DBS - Disclosure & Barring Service,Criminal Record Checks,CAMBRIDGESHIRE POLICE & CRIME COMMISSIONER,1001850350,"35,176.79"
Home Office,DBS - Disclosure & Barring Service,01/04/2016,DBS - Disclosure & Barring Service,Facilities management Services,DTZ DEBENHAM TIE LEUNG LTD,1001850392,"100,065.00"
Home Office,DBS - Disclosure & Barring Service,01/04/2016,DBS - Disclosure & Barring Service,Facilities management Services,DTZ DEBENHAM TIE LEUNG LTD,1001850392,"11,914.00"
Home Office,DBS - Disclosure & Barring Service,01/04/2016,DBS - Disclosure & Barring Service,Advertising Media,MARKET & OPINION RESEARCH INTERNATIONAL LTD T/A IPSOS MRI,1001850466,"45,990.00"
Home Office,DBS - Disclosure & Barring Service,01/04/2016,DBS - Disclosure & Barring Service,Criminal Record Checks,MAYORS OFFICE FOR POLICING AND CRIME (MOPC),1001850474,"621,545.16"
Home Office,DBS - Disclosure & Barring Service,01/04/2016,DBS - Disclosure & Barring Service,Criminal Record Checks,NORTHAMPTONSHIRE OFFICE OF THE POLICE & CRIME COMMISSIONER,1001850489,"71,347.76"
Home Office,DBS - Disclosure & Barring Service,01/04/2016,DBS - Disclosure & Barring Service,Criminal Record Checks,OFFICE OF THE POLICE & CRIME COMMISSIONER FOR MERSEYSIDE,1001850496,"52,179.77"
Home Office,DBS - Disclosure & Barring Service,01/04/2016,DBS - Disclosure & Barring Service,Criminal Record Checks,OFFICE OF THE POLICE & CRIME COMMISSIONER FOR STAFFORDSHIRE,1001850498,"31,410.73"
Home Office,DBS - Disclosure & Barring Service,01/04/2016,DBS - Disclosure & Barring Service,Criminal Record Checks,OFFICE OF THE WEST YORKSHIRE POLICE & CRIME COMMISSIONER,1001850500,"67,912.65"
Home Office,DBS - Disclosure & Barring Service,01/04/2016,DBS - Disclosure & Barring Service,Criminal Record Checks,OFFICE OF THE WEST YORKSHIRE POLICE & CRIME COMMISSIONER,1001850500,"102,327.65"
Home Office,DBS - Disclosure & Barring Service,01/04/2016,DBS - Disclosure & Barring Service,Criminal Record Checks,POLICE & CRIME COMMISIONER FOR THAMES VALLEY,1001850508,"190,112.66"
Home Office,DBS - Disclosure & Barring Service,01/04/2016,DBS - Disclosure & Barring Service,Criminal Record Checks,POLICE & CRIME COMMISSIONER FOR CHESHIRE,1001850509,"45,344.49"
Home Office,DBS - Disclosure & Barring Service,01/04/2016,DBS - Disclosure & Barring Service,Criminal Record Checks,POLICE & CRIME COMMISSIONER FOR LANCASHIRE (THE),1001850519,"50,894.31"
Home Office,DBS - Disclosure & Barring Service,01/04/2016,DBS - Disclosure & Barring Service,Criminal Record Checks,POLICE & CRIME COMMISSIONER FOR SURREY,1001850522,"81,627.40"
Home Office,DBS - Disclosure & Barring Service,01/04/2016,DBS - Disclosure & Barring Service,Criminal Record Checks,POLICE & CRIME COMMISSIONER FOR WILTSHIRE,1001850524,"41,908.55"
Home Office,DBS - Disclosure & Barring Service,01/04/2016,DBS - Disclosure & Barring Service,Criminal Record Checks,ROYAL MILITARY POLICE FORCE,1001850546,"25,999.07"
Home Office,DBS - Disclosure & Barring Service,01/04/2016,DBS - Disclosure & Barring Service,"Professional, Management, Outsourcing & Admin Services",TATA CONSULTANCY SERVICES LTD,1001850572,"3,760,433.64"
Home Office,DBS - Disclosure & Barring Service,01/04/2016,DBS - Disclosure & Barring Service,"Professional, Management, Outsourcing & Admin Services",TATA CONSULTANCY SERVICES LTD,1001850572,"172,034.10"
Home Office,DBS - Disclosure & Barring Service,01/04/2016,DBS - Disclosure & Barring Service,"Professional, Management, Outsourcing & Admin Services",TATA CONSULTANCY SERVICES LTD,1001850572,"201,718.81"
Home Office,DBS - Disclosure & Barring Service,01/04/2016,DBS - Disclosure & Barring Service,"Professional, Management, Outsourcing & Admin Services",TATA CONSULTANCY SERVICES LTD,1001850572,"183,612.89"
Home Office,DBS - Disclosure & Barring Service,01/04/2016,DBS - Disclosure & Barring Service,"Professional, Management, Outsourcing & Admin Services",TATA CONSULTANCY SERVICES LTD,1001850572,"153,390.07"
Home Office,DBS - Disclosure & Barring Service,01/04/2016,DBS - Disclosure & Barring Service,"Professional, Management, Outsourcing & Admin Services",TATA CONSULTANCY SERVICES LTD,1001850572,"245,017.97"
Home Office,DBS - Disclosure & Barring Service,01/04/2016,DBS - Disclosure & Barring Service,"Professional, Management, Outsourcing & Admin Services",TATA CONSULTANCY SERVICES LTD,1001850572,"290,700.68"
Home Office,DBS - Disclosure & Barring Service,01/04/2016,DBS - Disclosure & Barring Service,Criminal Record Checks,THE POLICE & CRIME COMMISSIONER FOR NORTH YORKSHIRE,1001850576,"37,898.63"
Home Office,DBS - Disclosure & Barring Service,01/04/2016,DBS - Disclosure & Barring Service,Criminal Record Checks,WEST MERCIA PCC,1001850600,"33,150.45"
Home Office,DBS - Disclosure & Barring Service,05/04/2016,DBS - Disclosure & Barring Service,Facilities management Services,PRINCES DOCK OFFICE NO 9 LTD,1001851791,"77,491.62"
Home Office,DBS - Disclosure & Barring Service,06/04/2016,DBS - Disclosure & Barring Service,"IT, TelecommsManaged Service",MINISTRY OF JUSTICE,3000052139,"25,500.00"
Home Office,DBS - Disclosure & Barring Service,06/04/2016,DBS - Disclosure & Barring Service,"IT, TelecommsManaged Service",MINISTRY OF JUSTICE,3000052139,"85,842.00"
Home Office,DBS - Disclosure & Barring Service,06/04/2016,DBS - Disclosure & Barring Service,Facilities management Services,PRINCES DOCK OFFICE NO 9 LTD,1001852249,"281,852.88"
Home Office,DBS - Disclosure & Barring Service,06/04/2016,DBS - Disclosure & Barring Service,"Professional, Management, Outsourcing & Admin Services",TATA CONSULTANCY SERVICES LTD,1001852267,"537,420.00"
Home Office,DBS - Disclosure & Barring Service,06/04/2016,DBS - Disclosure & Barring Service,"Professional, Management, Outsourcing & Admin Services",TATA CONSULTANCY SERVICES LTD,1001852267,"177,006.00"
Home Office,DBS - Disclosure & Barring Service,15/04/2016,DBS - Disclosure & Barring Service,"Professional, Management, Outsourcing & Admin Services",TATA CONSULTANCY SERVICES LTD,1001855961,"3,986,628.16"
Home Office,DBS - Disclosure & Barring Service,15/04/2016,DBS - Disclosure & Barring Service,"Professional, Management, Outsourcing & Admin Services",TATA CONSULTANCY SERVICES LTD,1001855961,"144,784.50"
Home Office,DBS - Disclosure & Barring Service,15/04/2016,DBS - Disclosure & Barring Service,"Professional, Management, Outsourcing & Admin Services",TATA CONSULTANCY SERVICES LTD,1001855961,"271,236.13"
Home Office,DBS - Disclosure & Barring Service,15/04/2016,DBS - Disclosure & Barring Service,"Professional, Management, Outsourcing & Admin Services",TATA CONSULTANCY SERVICES LTD,1001855961,"157,848.02"
Home Office,DBS - Disclosure & Barring Service,15/04/2016,DBS - Disclosure & Barring Service,"Professional, Management, Outsourcing & Admin Services",TATA CONSULTANCY SERVICES LTD,1001855961,"1,036,379.98"
Home Office,DBS - Disclosure & Barring Service,15/04/2016,DBS - Disclosure & Barring Service,"Professional, Management, Outsourcing & Admin Services",TATA CONSULTANCY SERVICES LTD,1001855961,"66,463.20"
Home Office,DBS - Disclosure & Barring Service,18/04/2016,DBS - Disclosure & Barring Service,"Professional, Management, Outsourcing & Admin Services",TATA CONSULTANCY SERVICES LTD,1001856539,"297,878.20"
Home Office,DBS - Disclosure & Barring Service,21/04/2016,DBS - Disclosure & Barring Service,Grant,AVON & SOMERSET CONSTABULARY (G),1001857768,"48,416.37"
Home Office,DBS - Disclosure & Barring Service,21/04/2016,DBS - Disclosure & Barring Service,Grant,POLICE & CRIME COMMISSIONER FOR DERBYSHIRE (G),1001857776,"55,097.16"
Home Office,DBS - Disclosure & Barring Service,21/04/2016,DBS - Disclosure & Barring Service,Grant,POLICE AND CRIME COMMISSIONER FOR BEDFORDSHIRE (THE) (G),1001857777,"29,777.81"
Home Office,DBS - Disclosure & Barring Service,22/04/2016,DBS - Disclosure & Barring Service,Criminal Record Checks,NOTTINGHAMSHIRE OFFICE OF THE POLICE & CRIME COMMISSIONER (THE),1001858317,"92,848.37"
Home Office,DBS - Disclosure & Barring Service,22/04/2016,DBS - Disclosure & Barring Service,Criminal Record Checks,OFFICE OF THE WEST YORKSHIRE POLICE & CRIME COMMISSIONER,1001858321,"71,715.07"
Home Office,DBS - Disclosure & Barring Service,22/04/2016,DBS - Disclosure & Barring Service,Criminal Record Checks,POLICE & CRIME COMMISSIONER FOR NORTH WALES,1001858329,"52,014.89"
Home Office,DBS - Disclosure & Barring Service,22/04/2016,DBS - Disclosure & Barring Service,Criminal Record Checks,POLICE & CRIME COMMISSIONER FOR NORTH WALES,1001858329,"92,557.58"
Home Office,DBS - Disclosure & Barring Service,22/04/2016,DBS - Disclosure & Barring Service,Criminal Record Checks,THE POLICE & CRIME COMMISSIONER FOR NORTH YORKSHIRE,1001858367,"35,033.14"
Home Office,DBS - Disclosure & Barring Service,22/04/2016,DBS - Disclosure & Barring Service,Criminal Record Checks,WEST MERCIA PCC,1001858382,"40,474.80"
Home Office,DBS - Disclosure & Barring Service,22/04/2016,DBS - Disclosure & Barring Service,Criminal Record Checks,WEST MIDLANDS OFFICE FOR POLICING & CRIME,1001858383,"138,468.87"
Home Office,DBS - Disclosure & Barring Service,25/04/2016,DBS - Disclosure & Barring Service,Criminal Record Checks,AVON & SOMERSET POLICE & CRIME COMMISSIONER,1001858848,"101,862.10"
Home Office,DBS - Disclosure & Barring Service,25/04/2016,DBS - Disclosure & Barring Service,Criminal Record Checks,ISLE OF MAN POLICE FORCE,1001858901,"33,580.64"
Home Office,DBS - Disclosure & Barring Service,25/04/2016,DBS - Disclosure & Barring Service,Criminal Record Checks,MAYORS OFFICE FOR POLICING AND CRIME (MOPC),1001858910,"732,342.70"
Home Office,DBS - Disclosure & Barring Service,25/04/2016,DBS - Disclosure & Barring Service,Criminal Record Checks,OFFICE OF THE DURHAM POLICE & CRIME COMMISSIONER,1001858922,"49,513.21"
Home Office,DBS - Disclosure & Barring Service,25/04/2016,DBS - Disclosure & Barring Service,Criminal Record Checks,OFFICE OF THE KENT POLICE & CRIME COMMISSIONER,1001858923,"69,195.97"
Home Office,DBS - Disclosure & Barring Service,25/04/2016,DBS - Disclosure & Barring Service,Criminal Record Checks,OFFICE OF THE POLICE & CRIME COMMISSIONER FOR LEICESTERSHIRE (THE),1001858924,"164,930.93"
Home Office,DBS - Disclosure & Barring Service,25/04/2016,DBS - Disclosure & Barring Service,Criminal Record Checks,OFFICE OF THE POLICE & CRIME COMMISSIONER FOR STAFFORDSHIRE,1001858925,"31,410.73"
Home Office,DBS - Disclosure & Barring Service,25/04/2016,DBS - Disclosure & Barring Service,Criminal Record Checks,POLICE & CRIME COMMISSIONER FOR CHESHIRE,1001858932,"44,453.77"
Home Office,DBS - Disclosure & Barring Service,25/04/2016,DBS - Disclosure & Barring Service,Criminal Record Checks,POLICE & CRIME COMMISSIONER FOR CLEVELAND,1001858933,"26,290.15"
Home Office,DBS - Disclosure & Barring Service,25/04/2016,DBS - Disclosure & Barring Service,Criminal Record Checks,POLICE & CRIME COMMISSIONER FOR ESSEX,1001858936,"160,877.90"
Home Office,DBS - Disclosure & Barring Service,25/04/2016,DBS - Disclosure & Barring Service,Criminal Record Checks,POLICE & CRIME COMMISSIONER FOR ESSEX,1001858936,"82,201.51"
Home Office,DBS - Disclosure & Barring Service,25/04/2016,DBS - Disclosure & Barring Service,Criminal Record Checks,POLICE & CRIME COMMISSIONER FOR GWENT,1001858937,"26,118.81"
Home Office,DBS - Disclosure & Barring Service,25/04/2016,DBS - Disclosure & Barring Service,Criminal Record Checks,POLICE & CRIME COMMISSIONER FOR HAMPSHIRE,1001858938,"121,591.14"
Home Office,DBS - Disclosure & Barring Service,25/04/2016,DBS - Disclosure & Barring Service,Criminal Record Checks,POLICE & CRIME COMMISSIONER FOR HERTFORDSHIRE,1001858939,"78,481.90"
Home Office,DBS - Disclosure & Barring Service,25/04/2016,DBS - Disclosure & Barring Service,Criminal Record Checks,POLICE & CRIME COMMISSIONER FOR LANCASHIRE (THE),1001858940,"59,346.43"
Home Office,DBS - Disclosure & Barring Service,25/04/2016,DBS - Disclosure & Barring Service,Criminal Record Checks,POLICE & CRIME COMMISSIONER FOR SOUTH WALES POLICE,1001858942,"41,385.09"
Home Office,DBS - Disclosure & Barring Service,25/04/2016,DBS - Disclosure & Barring Service,Criminal Record Checks,POLICE & CRIME COMMISSIONER FOR SURREY,1001858943,"80,960.83"
Home Office,DBS - Disclosure & Barring Service,25/04/2016,DBS - Disclosure & Barring Service,Criminal Record Checks,POLICE & CRIME COMMISSIONER FOR SUSSEX (THE),1001858944,"35,059.47"
Home Office,DBS - Disclosure & Barring Service,25/04/2016,DBS - Disclosure & Barring Service,Criminal Record Checks,POLICE & CRIME COMMISSIONER FOR SUSSEX (THE),1001858944,"35,039.44"
Home Office,Home Office,06/04/2016,Communications,Advertising Media,DENTSU AEGIS UK LIMITED,1001852187,"298,948.26"
Home Office,Home Office,06/04/2016,Communications,Advertising Media,DENTSU AEGIS UK LIMITED,1001852187,"49,786.64"
Home Office,Home Office,06/04/2016,Communications,Ex-gratia Payments,DENTSU AEGIS UK LIMITED,1001852187,"-28,702.76"
Home Office,Home Office,21/04/2016,Communications,Advertising Media,DENTSU AEGIS UK LIMITED,1001857875,"67,261.57"
Home Office,Home Office,01/04/2016,CPG - Crime & Policing Group,Misc Serv - non OGDs,MAYORS OFFICE FOR POLICING AND CRIME (MOPC),1001850474,"1,514,375.00"
Home Office,Home Office,01/04/2016,CPG - Crime & Policing Group,Grant,MAYORS OFFICE FOR POLICING AND CRIME (MOPC) (G),1001850190,"112,742.00"
Home Office,Home Office,01/04/2016,CPG - Crime & Policing Group,"Professional, Management, Outsourcing & Admin Services",PA CONSULTING SERVICES LTD,1001850503,"134,610.00"
Home Office,Home Office,01/04/2016,CPG - Crime & Policing Group,"Professional, Management, Outsourcing & Admin Services",PA CONSULTING SERVICES LTD,1001850503,"101,505.60"
Home Office,Home Office,01/04/2016,CPG - Crime & Policing Group,"Professional, Management, Outsourcing & Admin Services",PA CONSULTING SERVICES LTD,1001850503,"-102,231.60"
Home Office,Home Office,01/04/2016,CPG - Crime & Policing Group,"IT, TelecommsManaged Service",ROCK KITCHEN HARRIS LTD,1001850543,"52,380.00"
Home Office,Home Office,01/04/2016,CPG - Crime & Policing Group,"IT, TelecommsManaged Service",SELEX ES LTD,1001850550,"130,540.60"
Home Office,Home Office,01/04/2016,CPG - Crime & Policing Group,"IT, Tele ApplicationConsultancy&Development",VODAFONE LTD,1001850592,"63,296.40"
Home Office,Home Office,05/04/2016,CPG - Crime & Policing Group,Grant,AVON & SOMERSET POLICE & CRIME COMMISSIONER (G),1001851550,"80,131.00"
Home Office,Home Office,05/04/2016,CPG - Crime & Policing Group,Grant,AVON & SOMERSET POLICE & CRIME COMMISSIONER (G),1001851550,"197,449.00"
Home Office,Home Office,05/04/2016,CPG - Crime & Policing Group,Grant,AVON & SOMERSET POLICE & CRIME COMMISSIONER (G),1001851550,"948,158.00"
Home Office,Home Office,05/04/2016,CPG - Crime & Policing Group,Grant,AVON & SOMERSET POLICE & CRIME COMMISSIONER (G),1001851550,"4,707,594.00"
Home Office,Home Office,05/04/2016,CPG - Crime & Policing Group,Grant,AVON & SOMERSET POLICE & CRIME COMMISSIONER (G),1001851550,"8,751,822.00"
Home Office,Home Office,05/04/2016,CPG - Crime & Policing Group,Grant,CAMBRIDGESHIRE POLICE & CRIME COMMISSIONER (G),1001851551,"97,709.00"
Home Office,Home Office,05/04/2016,CPG - Crime & Policing Group,Grant,CAMBRIDGESHIRE POLICE & CRIME COMMISSIONER (G),1001851551,"44,147.00"
Home Office,Home Office,05/04/2016,CPG - Crime & Policing Group,Grant,CAMBRIDGESHIRE POLICE & CRIME COMMISSIONER (G),1001851551,"401,871.00"
Home Office,Home Office,05/04/2016,CPG - Crime & Policing Group,Grant,CAMBRIDGESHIRE POLICE & CRIME COMMISSIONER (G),1001851551,"2,033,417.00"
Home Office,Home Office,05/04/2016,CPG - Crime & Policing Group,Grant,CAMBRIDGESHIRE POLICE & CRIME COMMISSIONER (G),1001851551,"4,042,102.00"
Home Office,Home Office,05/04/2016,CPG - Crime & Policing Group,Grant,CHAMBERLAIN OF LONDON (G),1001851552,"2,802,142.00"
Home Office,Home Office,05/04/2016,CPG - Crime & Policing Group,Grant,CHAMBERLAIN OF LONDON (G),1001851552,"1,533,590.00"
Home Office,Home Office,05/04/2016,CPG - Crime & Policing Group,Grant,CITY OF LONDON POLICE AUTHORITY (G),1001851553,"377,432.00"
Home Office,Home Office,05/04/2016,CPG - Crime & Policing Group,Grant,COLLEGE OF POLICING (G),1001851554,"4,500,000.00"
Home Office,Home Office,05/04/2016,CPG - Crime & Policing Group,Grant,CUMBRIA POLICE & CRIME COMMISSIONER (G),1001851556,"71,484.00"
Home Office,Home Office,05/04/2016,CPG - Crime & Policing Group,Grant,CUMBRIA POLICE & CRIME COMMISSIONER (G),1001851556,"332,662.00"
Home Office,Home Office,05/04/2016,CPG - Crime & Policing Group,Grant,CUMBRIA POLICE & CRIME COMMISSIONER (G),1001851556,"2,568,502.00"
Home Office,Home Office,05/04/2016,CPG - Crime & Policing Group,Grant,CUMBRIA POLICE & CRIME COMMISSIONER (G),1001851556,"2,393,398.00"
Home Office,Home Office,05/04/2016,CPG - Crime & Policing Group,Grant,DORSET POLICE & CRIME COMMISSIONERS (G),1001851557,"110,876.00"
Home Office,Home Office,05/04/2016,CPG - Crime & Policing Group,Grant,DORSET POLICE & CRIME COMMISSIONERS (G),1001851557,"500,784.00"
Home Office,Home Office,05/04/2016,CPG - Crime & Policing Group,Grant,DORSET POLICE & CRIME COMMISSIONERS (G),1001851557,"1,444,394.00"
Home Office,Home Office,05/04/2016,CPG - Crime & Policing Group,Grant,DORSET POLICE & CRIME COMMISSIONERS (G),1001851557,"3,436,293.00"
Home Office,Home Office,05/04/2016,CPG - Crime & Policing Group,"Messenger, Portering and Reception Services",FORENSIC ARCHIVE LTD,1001851752,"295,200.00"
Home Office,Home Office,05/04/2016,CPG - Crime & Policing Group,Grant,GREATER LONDON AUTHORITY (G),1001851558,"9,972,993.00"
Home Office,Home Office,05/04/2016,CPG - Crime & Policing Group,Grant,GREATER LONDON AUTHORITY (G),1001851558,"14,470,789.00"
Home Office,Home Office,05/04/2016,CPG - Crime & Policing Group,Grant,GREATER LONDON AUTHORITY (G),1001851558,"62,482,804.00"
Home Office,Home Office,05/04/2016,CPG - Crime & Policing Group,Grant,GREATER LONDON AUTHORITY (G),1001851558,"71,790,375.00"
Home Office,Home Office,05/04/2016,CPG - Crime & Policing Group,Grant,NORTHAMPTONSHIRE OFFICE OF THE POLICE & CRIME COMMISSIONER (G),1001851559,"38,294.00"
Home Office,Home Office,05/04/2016,CPG - Crime & Policing Group,Grant,NORTHAMPTONSHIRE OFFICE OF THE POLICE & CRIME COMMISSIONER (G),1001851559,"94,294.00"
Home Office,Home Office,05/04/2016,CPG - Crime & Policing Group,Grant,NORTHAMPTONSHIRE OFFICE OF THE POLICE & CRIME COMMISSIONER (G),1001851559,"421,117.00"
Home Office,Home Office,05/04/2016,CPG - Crime & Policing Group,Grant,NORTHAMPTONSHIRE OFFICE OF THE POLICE & CRIME COMMISSIONER (G),1001851559,"2,014,987.00"
Home Office,Home Office,05/04/2016,CPG - Crime & Policing Group,Grant,NORTHAMPTONSHIRE OFFICE OF THE POLICE & CRIME COMMISSIONER (G),1001851559,"3,597,543.00"
Home Office,Home Office,05/04/2016,CPG - Crime & Policing Group,Grant,NOTTINGHAMSHIRE OFFICE OF THE POLICE & CRIME COMMISSIONER (THE) (G),1001851560,"111,008.00"
Home Office,Home Office,05/04/2016,CPG - Crime & Policing Group,Grant,NOTTINGHAMSHIRE OFFICE OF THE POLICE & CRIME COMMISSIONER (THE) (G),1001851560,"699,508.00"
Home Office,Home Office,05/04/2016,CPG - Crime & Policing Group,Grant,NOTTINGHAMSHIRE OFFICE OF THE POLICE & CRIME COMMISSIONER (THE) (G),1001851560,"4,010,209.00"
Home Office,Home Office,05/04/2016,CPG - Crime & Policing Group,Grant,NOTTINGHAMSHIRE OFFICE OF THE POLICE & CRIME COMMISSIONER (THE) (G),1001851560,"6,494,315.00"
Home Office,Home Office,05/04/2016,CPG - Crime & Policing Group,Grant,OFFICE FOR THE POLICE & CRIME COMMISSIONER OF NORFOLK (G),1001851561,"118,991.00"
Home Office,Home Office,05/04/2016,CPG - Crime & Policing Group,Grant,OFFICE FOR THE POLICE & CRIME COMMISSIONER OF NORFOLK (G),1001851561,"656,386.00"
Home Office,Home Office,05/04/2016,CPG - Crime & Policing Group,Grant,OFFICE FOR THE POLICE & CRIME COMMISSIONER OF NORFOLK (G),1001851561,"2,397,866.00"
Home Office,Home Office,05/04/2016,CPG - Crime & Policing Group,Grant,OFFICE FOR THE POLICE & CRIME COMMISSIONER OF NORFOLK (G),1001851561,"4,184,889.00"
Home Office,Home Office,05/04/2016,CPG - Crime & Policing Group,Grant,OFFICE OF THE DURHAM POLICE & CRIME COMMISSIONER (G),1001851562,"60,665.00"
Home Office,Home Office,05/04/2016,CPG - Crime & Policing Group,Grant,OFFICE OF THE DURHAM POLICE & CRIME COMMISSIONER (G),1001851562,"448,512.00"
Home Office,Home Office,05/04/2016,CPG - Crime & Policing Group,Grant,OFFICE OF THE DURHAM POLICE & CRIME COMMISSIONER (G),1001851562,"3,080,307.00"
Home Office,Home Office,05/04/2016,CPG - Crime & Policing Group,Grant,OFFICE OF THE DURHAM POLICE & CRIME COMMISSIONER (G),1001851562,"3,559,049.00"
Home Office,Home Office,05/04/2016,CPG - Crime & Policing Group,Grant,OFFICE OF THE KENT POLICE & CRIME COMMISSIONER (G),1001851563,"183,624.00"
Home Office,Home Office,05/04/2016,CPG - Crime & Policing Group,Grant,OFFICE OF THE KENT POLICE & CRIME COMMISSIONER (G),1001851563,"924,509.00"
Home Office,Home Office,05/04/2016,CPG - Crime & Policing Group,Grant,OFFICE OF THE KENT POLICE & CRIME COMMISSIONER (G),1001851563,"5,549,893.00"
Home Office,Home Office,05/04/2016,CPG - Crime & Policing Group,Grant,OFFICE OF THE KENT POLICE & CRIME COMMISSIONER (G),1001851563,"8,856,951.00"
Home Office,Home Office,05/04/2016,CPG - Crime & Policing Group,Grant,OFFICE OF THE POLICE & CRIME COMMISSIONER FOR GREATER MANCHESTER (G),1001851564,"241,664.00"
Home Office,Home Office,05/04/2016,CPG - Crime & Policing Group,Grant,OFFICE OF THE POLICE & CRIME COMMISSIONER FOR GREATER MANCHESTER (G),1001851564,"104,837.00"
Home Office,Home Office,05/04/2016,CPG - Crime & Policing Group,Grant,OFFICE OF THE POLICE & CRIME COMMISSIONER FOR GREATER MANCHESTER (G),1001851564,"1,796,307.00"
Home Office,Home Office,05/04/2016,CPG - Crime & Policing Group,Grant,OFFICE OF THE POLICE & CRIME COMMISSIONER FOR GREATER MANCHESTER (G),1001851564,"15,115,118.00"
Home Office,Home Office,05/04/2016,CPG - Crime & Policing Group,Grant,OFFICE OF THE POLICE & CRIME COMMISSIONER FOR GREATER MANCHESTER (G),1001851564,"18,885,875.00"
Home Office,Home Office,05/04/2016,CPG - Crime & Policing Group,Grant,OFFICE OF THE POLICE & CRIME COMMISSIONER FOR HUMBERSIDE (G),1001851565,"41,699.00"
Home Office,Home Office,05/04/2016,CPG - Crime & Policing Group,Grant,OFFICE OF THE POLICE & CRIME COMMISSIONER FOR HUMBERSIDE (G),1001851565,"99,954.00"
Home Office,Home Office,05/04/2016,CPG - Crime & Policing Group,Grant,OFFICE OF THE POLICE & CRIME COMMISSIONER FOR HUMBERSIDE (G),1001851565,"695,092.00"
Home Office,Home Office,05/04/2016,CPG - Crime & Policing Group,Grant,OFFICE OF THE POLICE & CRIME COMMISSIONER FOR HUMBERSIDE (G),1001851565,"3,880,772.00"
Home Office,Home Office,05/04/2016,CPG - Crime & Policing Group,Grant,OFFICE OF THE POLICE & CRIME COMMISSIONER FOR HUMBERSIDE (G),1001851565,"5,603,778.00"
Home Office,Home Office,05/04/2016,CPG - Crime & Policing Group,Grant,OFFICE OF THE POLICE & CRIME COMMISSIONER FOR LEICESTERSHIRE (THE) (G),1001851566,"46,755.00"
Home Office,Home Office,05/04/2016,CPG - Crime & Policing Group,Grant,OFFICE OF THE POLICE & CRIME COMMISSIONER FOR LEICESTERSHIRE (THE) (G),1001851566,"112,456.00"
Home Office,Home Office,05/04/2016,CPG - Crime & Policing Group,Grant,OFFICE OF THE POLICE & CRIME COMMISSIONER FOR LEICESTERSHIRE (THE) (G),1001851566,"585,033.00"
Home Office,Home Office,05/04/2016,CPG - Crime & Policing Group,Grant,OFFICE OF THE POLICE & CRIME COMMISSIONER FOR LEICESTERSHIRE (THE) (G),1001851566,"3,304,060.00"
Home Office,Home Office,05/04/2016,CPG - Crime & Policing Group,Grant,OFFICE OF THE POLICE & CRIME COMMISSIONER FOR LEICESTERSHIRE (THE) (G),1001851566,"5,445,455.00"
Home Office,Home Office,05/04/2016,CPG - Crime & Policing Group,Grant,OFFICE OF THE POLICE & CRIME COMMISSIONER FOR MERSEYSIDE (G),1001851567,"128,132.00"
Home Office,Home Office,05/04/2016,CPG - Crime & Policing Group,Grant,OFFICE OF THE POLICE & CRIME COMMISSIONER FOR MERSEYSIDE (G),1001851567,"1,175,284.00"
Home Office,Home Office,05/04/2016,CPG - Crime & Policing Group,Grant,OFFICE OF THE POLICE & CRIME COMMISSIONER FOR MERSEYSIDE (G),1001851567,"9,403,612.00"
Home Office,Home Office,05/04/2016,CPG - Crime & Policing Group,Grant,OFFICE OF THE POLICE & CRIME COMMISSIONER FOR MERSEYSIDE (G),1001851567,"10,205,596.00"
Home Office,Home Office,05/04/2016,CPG - Crime & Policing Group,Grant,OFFICE OF THE POLICE & CRIME COMMISSIONER FOR STAFFORDSHIRE (G),1001851568,"53,547.00"
Home Office,Home Office,05/04/2016,CPG - Crime & Policing Group,Grant,OFFICE OF THE POLICE & CRIME COMMISSIONER FOR STAFFORDSHIRE (G),1001851568,"132,904.00"
Home Office,Home Office,05/04/2016,CPG - Crime & Policing Group,Grant,OFFICE OF THE POLICE & CRIME COMMISSIONER FOR STAFFORDSHIRE (G),1001851568,"53,914.00"
Home Office,Home Office,05/04/2016,CPG - Crime & Policing Group,Grant,OFFICE OF THE POLICE & CRIME COMMISSIONER FOR STAFFORDSHIRE (G),1001851568,"54,726.00"
Home Office,Home Office,05/04/2016,CPG - Crime & Policing Group,Grant,OFFICE OF THE POLICE & CRIME COMMISSIONER FOR STAFFORDSHIRE (G),1001851568,"701,956.00"
Home Office,Home Office,05/04/2016,CPG - Crime & Policing Group,Grant,OFFICE OF THE POLICE & CRIME COMMISSIONER FOR STAFFORDSHIRE (G),1001851568,"3,328,111.00"
Home Office,Home Office,05/04/2016,CPG - Crime & Policing Group,Grant,OFFICE OF THE POLICE & CRIME COMMISSIONER FOR STAFFORDSHIRE (G),1001851568,"5,540,552.00"
Home Office,Home Office,05/04/2016,CPG - Crime & Policing Group,Grant,OFFICE OF THE POLICE & CRIME COMMISSIONER FOR SUFFOLK (G),1001851569,"35,893.00"
Home Office,Home Office,05/04/2016,CPG - Crime & Policing Group,Grant,OFFICE OF THE POLICE & CRIME COMMISSIONER FOR SUFFOLK (G),1001851569,"85,858.00"
Home Office,Home Office,05/04/2016,CPG - Crime & Policing Group,Grant,OFFICE OF THE POLICE & CRIME COMMISSIONER FOR SUFFOLK (G),1001851569,"36,152.00"
Home Office,Home Office,05/04/2016,CPG - Crime & Policing Group,Grant,OFFICE OF THE POLICE & CRIME COMMISSIONER FOR SUFFOLK (G),1001851569,"407,577.00"
Home Office,Home Office,05/04/2016,CPG - Crime & Policing Group,Grant,OFFICE OF THE POLICE & CRIME COMMISSIONER FOR SUFFOLK (G),1001851569,"1,905,592.00"
Home Office,Home Office,05/04/2016,CPG - Crime & Policing Group,Grant,OFFICE OF THE POLICE & CRIME COMMISSIONER FOR SUFFOLK (G),1001851569,"3,393,632.00"
Home Office,Home Office,05/04/2016,CPG - Crime & Policing Group,Grant,OFFICE OF THE POLICE & CRIME COMMISSIONER FOR WARWICKSHIRE (G),1001851570,"30,651.00"
Home Office,Home Office,05/04/2016,CPG - Crime & Policing Group,Grant,OFFICE OF THE POLICE & CRIME COMMISSIONER FOR WARWICKSHIRE (G),1001851570,"73,050.00"
Home Office,Home Office,05/04/2016,CPG - Crime & Policing Group,Grant,OFFICE OF THE POLICE & CRIME COMMISSIONER FOR WARWICKSHIRE (G),1001851570,"325,811.00"
Home Office,Home Office,05/04/2016,CPG - Crime & Policing Group,Grant,OFFICE OF THE POLICE & CRIME COMMISSIONER FOR WARWICKSHIRE (G),1001851570,"1,452,090.00"
Home Office,Home Office,05/04/2016,CPG - Crime & Policing Group,Grant,OFFICE OF THE POLICE & CRIME COMMISSIONER FOR WARWICKSHIRE (G),1001851570,"2,586,294.00"
Home Office,Home Office,05/04/2016,CPG - Crime & Policing Group,Grant,OFFICE OF THE WEST YORKSHIRE POLICE & CRIME COMMISSIONER (G),1001851571,"185,486.00"
Home Office,Home Office,05/04/2016,CPG - Crime & Policing Group,Grant,OFFICE OF THE WEST YORKSHIRE POLICE & CRIME COMMISSIONER (G),1001851571,"1,205,590.00"
Home Office,Home Office,05/04/2016,CPG - Crime & Policing Group,Grant,OFFICE OF THE WEST YORKSHIRE POLICE & CRIME COMMISSIONER (G),1001851571,"10,775,905.00"
Home Office,Home Office,05/04/2016,CPG - Crime & Policing Group,Grant,OFFICE OF THE WEST YORKSHIRE POLICE & CRIME COMMISSIONER (G),1001851571,"14,293,902.00"
Home Office,Home Office,05/04/2016,CPG - Crime & Policing Group,Grant,POLICE & CRIME COMMISIONER FOR THAMES VALLEY (G),1001851572,"281,035.00"
Home Office,Home Office,05/04/2016,CPG - Crime & Policing Group,Grant,POLICE & CRIME COMMISIONER FOR THAMES VALLEY (G),1001851572,"992,159.00"
Home Office,Home Office,05/04/2016,CPG - Crime & Policing Group,Grant,POLICE & CRIME COMMISIONER FOR THAMES VALLEY (G),1001851572,"6,157,532.00"
Home Office,Home Office,05/04/2016,CPG - Crime & Policing Group,Grant,POLICE & CRIME COMMISIONER FOR THAMES VALLEY (G),1001851572,"11,768,452.00"
Home Office,Home Office,05/04/2016,CPG - Crime & Policing Group,Grant,POLICE & CRIME COMMISSIONER FOR CHESHIRE (G),1001851573,"113,452.00"
Home Office,Home Office,05/04/2016,CPG - Crime & Policing Group,Grant,POLICE & CRIME COMMISSIONER FOR CHESHIRE (G),1001851573,"48,794.00"
Home Office,Home Office,05/04/2016,CPG - Crime & Policing Group,Grant,POLICE & CRIME COMMISSIONER FOR CHESHIRE (G),1001851573,"525,779.00"
Home Office,Home Office,05/04/2016,CPG - Crime & Policing Group,Grant,POLICE & CRIME COMMISSIONER FOR CHESHIRE (G),1001851573,"3,730,629.00"
Home Office,Home Office,05/04/2016,CPG - Crime & Policing Group,Grant,POLICE & CRIME COMMISSIONER FOR CHESHIRE (G),1001851573,"5,123,415.00"
Home Office,Home Office,05/04/2016,CPG - Crime & Policing Group,Grant,POLICE & CRIME COMMISSIONER FOR CLEVELAND (G),1001851574,"66,666.00"
Home Office,Home Office,05/04/2016,CPG - Crime & Policing Group,Grant,POLICE & CRIME COMMISSIONER FOR CLEVELAND (G),1001851574,"572,352.00"
Home Office,Home Office,05/04/2016,CPG - Crime & Policing Group,Grant,POLICE & CRIME COMMISSIONER FOR CLEVELAND (G),1001851574,"3,210,983.00"
Home Office,Home Office,05/04/2016,CPG - Crime & Policing Group,Grant,POLICE & CRIME COMMISSIONER FOR CLEVELAND (G),1001851574,"3,846,026.00"
Home Office,Home Office,05/04/2016,CPG - Crime & Policing Group,Grant,POLICE & CRIME COMMISSIONER FOR DERBYSHIRE (G),1001851575,"112,834.00"
Home Office,Home Office,05/04/2016,CPG - Crime & Policing Group,Grant,POLICE & CRIME COMMISSIONER FOR DERBYSHIRE (G),1001851575,"612,165.00"
Home Office,Home Office,05/04/2016,CPG - Crime & Policing Group,Grant,POLICE & CRIME COMMISSIONER FOR DERBYSHIRE (G),1001851575,"3,142,611.00"
Home Office,Home Office,05/04/2016,CPG - Crime & Policing Group,Grant,POLICE & CRIME COMMISSIONER FOR DERBYSHIRE (G),1001851575,"5,176,803.00"
Home Office,Home Office,05/04/2016,CPG - Crime & Policing Group,Grant,POLICE & CRIME COMMISSIONER FOR DEVON & CORNWALL (G),1001851576,"199,354.00"
Home Office,Home Office,05/04/2016,CPG - Crime & Policing Group,Grant,POLICE & CRIME COMMISSIONER FOR DEVON & CORNWALL (G),1001851576,"48,221.00"
Home Office,Home Office,05/04/2016,CPG - Crime & Policing Group,Grant,POLICE & CRIME COMMISSIONER FOR DEVON & CORNWALL (G),1001851576,"1,089,093.00"
Home Office,Home Office,05/04/2016,CPG - Crime & Policing Group,Grant,POLICE & CRIME COMMISSIONER FOR DEVON & CORNWALL (G),1001851576,"5,259,901.00"
Home Office,Home Office,05/04/2016,CPG - Crime & Policing Group,Grant,POLICE & CRIME COMMISSIONER FOR DEVON & CORNWALL (G),1001851576,"8,560,797.00"
Home Office,Home Office,05/04/2016,CPG - Crime & Policing Group,Grant,POLICE & CRIME COMMISSIONER FOR DYFED POWYS (G),1001851577,"2,670,990.00"
Home Office,Home Office,05/04/2016,CPG - Crime & Policing Group,Grant,POLICE & CRIME COMMISSIONER FOR DYFED POWYS (G),1001851577,"422,095.00"
Home Office,Home Office,05/04/2016,CPG - Crime & Policing Group,Grant,POLICE & CRIME COMMISSIONER FOR ESSEX  (G),1001851578,"177,748.00"
Home Office,Home Office,05/04/2016,CPG - Crime & Policing Group,Grant,POLICE & CRIME COMMISSIONER FOR ESSEX  (G),1001851578,"916,030.00"
Home Office,Home Office,05/04/2016,CPG - Crime & Policing Group,Grant,POLICE & CRIME COMMISSIONER FOR ESSEX  (G),1001851578,"4,661,035.00"
Home Office,Home Office,05/04/2016,CPG - Crime & Policing Group,Grant,POLICE & CRIME COMMISSIONER FOR ESSEX  (G),1001851578,"8,565,203.00"
Home Office,Home Office,05/04/2016,CPG - Crime & Policing Group,Grant,POLICE & CRIME COMMISSIONER FOR GLOUCESTERSHIRE (G),1001851579,"93,063.00"
Home Office,Home Office,05/04/2016,CPG - Crime & Policing Group,Grant,POLICE & CRIME COMMISSIONER FOR GLOUCESTERSHIRE (G),1001851579,"40,578.00"
Home Office,Home Office,05/04/2016,CPG - Crime & Policing Group,Grant,POLICE & CRIME COMMISSIONER FOR GLOUCESTERSHIRE (G),1001851579,"373,207.00"
Home Office,Home Office,05/04/2016,CPG - Crime & Policing Group,Grant,POLICE & CRIME COMMISSIONER FOR GLOUCESTERSHIRE (G),1001851579,"1,627,678.00"
Home Office,Home Office,05/04/2016,CPG - Crime & Policing Group,Grant,POLICE & CRIME COMMISSIONER FOR GLOUCESTERSHIRE (G),1001851579,"2,865,833.00"
Home Office,Home Office,05/04/2016,CPG - Crime & Policing Group,Grant,POLICE & CRIME COMMISSIONER FOR GWENT (G),1001851580,"3,532,774.00"
Home Office,Home Office,05/04/2016,CPG - Crime & Policing Group,Grant,POLICE & CRIME COMMISSIONER FOR HAMPSHIRE (G),1001851581,"209,995.00"
Home Office,Home Office,05/04/2016,CPG - Crime & Policing Group,Grant,POLICE & CRIME COMMISSIONER FOR HAMPSHIRE (G),1001851581,"868,681.00"
Home Office,Home Office,05/04/2016,CPG - Crime & Policing Group,Grant,POLICE & CRIME COMMISSIONER FOR HAMPSHIRE (G),1001851581,"5,261,625.00"
Home Office,Home Office,05/04/2016,CPG - Crime & Policing Group,Grant,POLICE & CRIME COMMISSIONER FOR HAMPSHIRE (G),1001851581,"10,001,027.00"
Home Office,Home Office,05/04/2016,CPG - Crime & Policing Group,Grant,POLICE & CRIME COMMISSIONER FOR HERTFORDSHIRE (G),1001851582,"55,695.00"
Home Office,Home Office,05/04/2016,CPG - Crime & Policing Group,Grant,POLICE & CRIME COMMISSIONER FOR HERTFORDSHIRE (G),1001851582,"138,358.00"
Home Office,Home Office,05/04/2016,CPG - Crime & Policing Group,Grant,POLICE & CRIME COMMISSIONER FOR HERTFORDSHIRE (G),1001851582,"56,442.00"
Home Office,Home Office,05/04/2016,CPG - Crime & Policing Group,Grant,POLICE & CRIME COMMISSIONER FOR HERTFORDSHIRE (G),1001851582,"56,594.00"
Home Office,Home Office,05/04/2016,CPG - Crime & Policing Group,Grant,POLICE & CRIME COMMISSIONER FOR HERTFORDSHIRE (G),1001851582,"545,275.00"
Home Office,Home Office,05/04/2016,CPG - Crime & Policing Group,Grant,POLICE & CRIME COMMISSIONER FOR HERTFORDSHIRE (G),1001851582,"3,030,731.00"
Home Office,Home Office,05/04/2016,CPG - Crime & Policing Group,Grant,POLICE & CRIME COMMISSIONER FOR HERTFORDSHIRE (G),1001851582,"5,949,576.00"
Home Office,Home Office,05/04/2016,CPG - Crime & Policing Group,Grant,POLICE & CRIME COMMISSIONER FOR LANCASHIRE (THE) (G),1001851583,"142,841.00"
Home Office,Home Office,05/04/2016,CPG - Crime & Policing Group,Grant,POLICE & CRIME COMMISSIONER FOR LANCASHIRE (THE) (G),1001851583,"926,054.00"
Home Office,Home Office,05/04/2016,CPG - Crime & Policing Group,Grant,POLICE & CRIME COMMISSIONER FOR LANCASHIRE (THE) (G),1001851583,"6,596,244.00"
Home Office,Home Office,05/04/2016,CPG - Crime & Policing Group,Grant,POLICE & CRIME COMMISSIONER FOR LANCASHIRE (THE) (G),1001851583,"8,379,619.00"
Home Office,Home Office,05/04/2016,CPG - Crime & Policing Group,Grant,POLICE & CRIME COMMISSIONER FOR LINCOLNSHIRE (THE) (G),1001851584,"88,222.00"
Home Office,Home Office,05/04/2016,CPG - Crime & Policing Group,Grant,POLICE & CRIME COMMISSIONER FOR LINCOLNSHIRE (THE) (G),1001851584,"481,241.00"
Home Office,Home Office,05/04/2016,CPG - Crime & Policing Group,Grant,POLICE & CRIME COMMISSIONER FOR LINCOLNSHIRE (THE) (G),1001851584,"1,693,729.00"
Home Office,Home Office,05/04/2016,CPG - Crime & Policing Group,Grant,POLICE & CRIME COMMISSIONER FOR LINCOLNSHIRE (THE) (G),1001851584,"3,200,270.00"
Home Office,Home Office,05/04/2016,CPG - Crime & Policing Group,Grant,POLICE & CRIME COMMISSIONER FOR NORTH WALES (G),1001851585,"3,857,465.00"
Home Office,Home Office,05/04/2016,CPG - Crime & Policing Group,Grant,POLICE & CRIME COMMISSIONER FOR NORTH WALES (G),1001851585,"406,479.00"
Home Office,Home Office,05/04/2016,CPG - Crime & Policing Group,Grant,POLICE & CRIME COMMISSIONER FOR NORTH YORKSHIRE (G),1001851586,"51,630.00"
Home Office,Home Office,05/04/2016,CPG - Crime & Policing Group,Grant,POLICE & CRIME COMMISSIONER FOR NORTH YORKSHIRE (G),1001851586,"127,685.00"
Home Office,Home Office,05/04/2016,CPG - Crime & Policing Group,Grant,POLICE & CRIME COMMISSIONER FOR NORTH YORKSHIRE (G),1001851586,"478,842.00"
Home Office,Home Office,05/04/2016,CPG - Crime & Policing Group,Grant,POLICE & CRIME COMMISSIONER FOR NORTH YORKSHIRE (G),1001851586,"2,253,387.00"
Home Office,Home Office,05/04/2016,CPG - Crime & Policing Group,Grant,POLICE & CRIME COMMISSIONER FOR NORTH YORKSHIRE (G),1001851586,"3,473,529.00"
Home Office,Home Office,05/04/2016,CPG - Crime & Policing Group,Grant,POLICE & CRIME COMMISSIONER FOR SOUTH WALES POLICE (G),1001851587,"7,288,551.00"
Home Office,Home Office,05/04/2016,CPG - Crime & Policing Group,Grant,POLICE & CRIME COMMISSIONER FOR SOUTH YORKSHIRE (G),1001851588,"105,745.00"
Home Office,Home Office,05/04/2016,CPG - Crime & Policing Group,Grant,POLICE & CRIME COMMISSIONER FOR SOUTH YORKSHIRE (G),1001851588,"799,270.00"
Home Office,Home Office,05/04/2016,CPG - Crime & Policing Group,Grant,POLICE & CRIME COMMISSIONER FOR SOUTH YORKSHIRE (G),1001851588,"6,455,390.00"
Home Office,Home Office,05/04/2016,CPG - Crime & Policing Group,Grant,POLICE & CRIME COMMISSIONER FOR SOUTH YORKSHIRE (G),1001851588,"8,383,107.00"
Home Office,Home Office,05/04/2016,CPG - Crime & Policing Group,Grant,POLICE & CRIME COMMISSIONER FOR SURREY (G),1001851589,"205,069.00"
Home Office,Home Office,05/04/2016,CPG - Crime & Policing Group,Grant,POLICE & CRIME COMMISSIONER FOR SURREY (G),1001851589,"563,209.00"
Home Office,Home Office,05/04/2016,CPG - Crime & Policing Group,Grant,POLICE & CRIME COMMISSIONER FOR SURREY (G),1001851589,"2,434,853.00"
Home Office,Home Office,05/04/2016,CPG - Crime & Policing Group,Grant,POLICE & CRIME COMMISSIONER FOR SURREY (G),1001851589,"5,180,407.00"
Home Office,Home Office,05/04/2016,CPG - Crime & Policing Group,Grant,POLICE & CRIME COMMISSIONER FOR SUSSEX (THE) (G),1001851590,"73,873.00"
Home Office,Home Office,05/04/2016,CPG - Crime & Policing Group,Grant,POLICE & CRIME COMMISSIONER FOR SUSSEX (THE) (G),1001851590,"181,293.00"
Home Office,Home Office,05/04/2016,CPG - Crime & Policing Group,Grant,POLICE & CRIME COMMISSIONER FOR SUSSEX (THE) (G),1001851590,"844,969.00"
Home Office,Home Office,05/04/2016,CPG - Crime & Policing Group,Grant,POLICE & CRIME COMMISSIONER FOR SUSSEX (THE) (G),1001851590,"4,490,980.00"
Home Office,Home Office,05/04/2016,CPG - Crime & Policing Group,Grant,POLICE & CRIME COMMISSIONER FOR SUSSEX (THE) (G),1001851590,"8,152,372.00"
Home Office,Home Office,05/04/2016,CPG - Crime & Policing Group,Grant,POLICE & CRIME COMMISSIONER FOR WILTSHIRE (THE) (G),1001851591,"33,524.00"
Home Office,Home Office,05/04/2016,CPG - Crime & Policing Group,Grant,POLICE & CRIME COMMISSIONER FOR WILTSHIRE (THE) (G),1001851591,"82,546.00"
Home Office,Home Office,05/04/2016,CPG - Crime & Policing Group,Grant,POLICE & CRIME COMMISSIONER FOR WILTSHIRE (THE) (G),1001851591,"320,166.00"
Home Office,Home Office,05/04/2016,CPG - Crime & Policing Group,Grant,POLICE & CRIME COMMISSIONER FOR WILTSHIRE (THE) (G),1001851591,"1,723,573.00"
Home Office,Home Office,05/04/2016,CPG - Crime & Policing Group,Grant,POLICE & CRIME COMMISSIONER FOR WILTSHIRE (THE) (G),1001851591,"3,123,735.00"
Home Office,Home Office,05/04/2016,CPG - Crime & Policing Group,Grant,POLICE AND CRIME COMMISSIONER FOR BEDFORDSHIRE (THE) (G),1001851592,"62,578.00"
Home Office,Home Office,05/04/2016,CPG - Crime & Policing Group,Grant,POLICE AND CRIME COMMISSIONER FOR BEDFORDSHIRE (THE) (G),1001851592,"323,866.00"
Home Office,Home Office,05/04/2016,CPG - Crime & Policing Group,Grant,POLICE AND CRIME COMMISSIONER FOR BEDFORDSHIRE (THE) (G),1001851592,"1,943,933.00"
Home Office,Home Office,05/04/2016,CPG - Crime & Policing Group,Grant,POLICE AND CRIME COMMISSIONER FOR BEDFORDSHIRE (THE) (G),1001851592,"3,361,255.00"
Home Office,Home Office,05/04/2016,CPG - Crime & Policing Group,Grant,THE OFFICE OF THE POLICE & CRIME COMMISSIONER FOR NORTHUMBRIA (G),1001851593,"75,994.00"
Home Office,Home Office,05/04/2016,CPG - Crime & Policing Group,Grant,THE OFFICE OF THE POLICE & CRIME COMMISSIONER FOR NORTHUMBRIA (G),1001851593,"32,426.00"
Home Office,Home Office,05/04/2016,CPG - Crime & Policing Group,Grant,THE OFFICE OF THE POLICE & CRIME COMMISSIONER FOR NORTHUMBRIA (G),1001851593,"572,223.00"
Home Office,Home Office,05/04/2016,CPG - Crime & Policing Group,Grant,THE OFFICE OF THE POLICE & CRIME COMMISSIONER FOR NORTHUMBRIA (G),1001851593,"8,947,634.00"
Home Office,Home Office,05/04/2016,CPG - Crime & Policing Group,Grant,THE OFFICE OF THE POLICE & CRIME COMMISSIONER FOR NORTHUMBRIA (G),1001851593,"9,177,235.00"
Home Office,Home Office,05/04/2016,CPG - Crime & Policing Group,Grant,WEST MERCIA PCC (G),1001851594,"66,627.00"
Home Office,Home Office,05/04/2016,CPG - Crime & Policing Group,Grant,WEST MERCIA PCC (G),1001851594,"164,640.00"
Home Office,Home Office,05/04/2016,CPG - Crime & Policing Group,Grant,WEST MERCIA PCC (G),1001851594,"766,660.00"
Home Office,Home Office,05/04/2016,CPG - Crime & Policing Group,Grant,WEST MERCIA PCC (G),1001851594,"3,615,671.00"
Home Office,Home Office,05/04/2016,CPG - Crime & Policing Group,Grant,WEST MERCIA PCC (G),1001851594,"5,529,029.00"
Home Office,Home Office,05/04/2016,CPG - Crime & Policing Group,Grant,WEST MIDLANDS OFFICE FOR POLICING & CRIME (G),1001851595,"165,945.00"
Home Office,Home Office,05/04/2016,CPG - Crime & Policing Group,Grant,WEST MIDLANDS OFFICE FOR POLICING & CRIME (G),1001851595,"1,419,533.00"
Home Office,Home Office,05/04/2016,CPG - Crime & Policing Group,Grant,WEST MIDLANDS OFFICE FOR POLICING & CRIME (G),1001851595,"15,023,010.00"
Home Office,Home Office,05/04/2016,CPG - Crime & Policing Group,Grant,WEST MIDLANDS OFFICE FOR POLICING & CRIME (G),1001851595,"20,901,975.00"
Home Office,Home Office,06/04/2016,CPG - Crime & Policing Group,Grant,INDEPENDENT POLICE COMPLAINTS COMISSION (G),3000052138,"4,000,000.00"
Home Office,Home Office,07/04/2016,CPG - Crime & Policing Group,Grant,BROKEN RAINBOW (G),4000005000,"30,000.00"
Home Office,Home Office,08/04/2016,CPG - Crime & Policing Group,Defense & Law Enforcement,POLICE & CRIME COMMISSIONER FOR HAMPSHIRE,1001853318,"36,000.00"
Home Office,Home Office,11/04/2016,CPG - Crime & Policing Group,Grant,MAYORS OFFICE FOR POLICING AND CRIME (MOPC) (G),1001853652,"314,912.89"
Home Office,Home Office,11/04/2016,CPG - Crime & Policing Group,Grant,MAYORS OFFICE FOR POLICING AND CRIME (MOPC) (G),1001853652,"99,322.71"
Home Office,Home Office,13/04/2016,CPG - Crime & Policing Group,Legal Fees,GOVERNMENT LEGAL DEPARTMENT,3000052159,"19,139.30"
Home Office,Home Office,13/04/2016,CPG - Crime & Policing Group,Legal Fees,GOVERNMENT LEGAL DEPARTMENT,3000052159,"8,156.52"
Home Office,Home Office,13/04/2016,CPG - Crime & Policing Group,Legal Fees,GOVERNMENT LEGAL DEPARTMENT,3000052159,198.56
Home Office,Home Office,13/04/2016,CPG - Crime & Policing Group,Legal Fees,GOVERNMENT LEGAL DEPARTMENT,3000052159,"25,338.96"
Home Office,Home Office,14/04/2016,CPG - Crime & Policing Group,Grant,MAYORS OFFICE FOR POLICING AND CRIME (MOPC) (G),1001855273,"37,769.40"
Home Office,Home Office,14/04/2016,CPG - Crime & Policing Group,Grant,MAYORS OFFICE FOR POLICING AND CRIME (MOPC) (G),1001855273,"38,367.00"
Home Office,Home Office,15/04/2016,CPG - Crime & Policing Group,"Professional, Management, Outsourcing & Admin Services","DEPARTMENT FOR BUSINESS, INNOVATION & SKILLS",3000052173,"77,886.10"
Home Office,Home Office,15/04/2016,CPG - Crime & Policing Group,"Professional, Management, Outsourcing & Admin Services",GOVERNMENT ACTUARY'S DEPARTMENT,3000052175,"49,549.21"
Home Office,Home Office,15/04/2016,CPG - Crime & Policing Group,"IT, TelecommsManaged Service",VODAFONE LTD,1001855969,"132,913.40"
Home Office,Home Office,15/04/2016,CPG - Crime & Policing Group,"IT, TelecommsManaged Service",VODAFONE LTD,1001855969,"181,550.40"
Home Office,Home Office,18/04/2016,CPG - Crime & Policing Group,Grant,GANGMASTERS LICENSING AUTHORITY (G),1001856315,"381,753.00"
Home Office,Home Office,18/04/2016,CPG - Crime & Policing Group,Defense & Law Enforcement,POLICE & CRIME COMMISSIONER FOR CLEVELAND,1001856518,"48,000.00"
Home Office,Home Office,20/04/2016,CPG - Crime & Policing Group,"Professional, Management, Outsourcing & Admin Services",MAYORS OFFICE FOR POLICING AND CRIME (MOPC),1001857470,"21,867.56"
Home Office,Home Office,20/04/2016,CPG - Crime & Policing Group,"Professional, Management, Outsourcing & Admin Services",MAYORS OFFICE FOR POLICING AND CRIME (MOPC),1001857470,"7,851.96"
Home Office,Home Office,20/04/2016,CPG - Crime & Policing Group,"IT, TelecommsManaged Service",VODAFONE LTD,1001857522,"78,345.60"
Home Office,Home Office,21/04/2016,CPG - Crime & Policing Group,"Science, Technical & Research",LONDON SCHOOL OF ECONOMICS AND POLITICAL SCIENCE,1001857902,"60,000.00"
Home Office,Home Office,21/04/2016,CPG - Crime & Policing Group,Grant,NEIGHBOURHOOD AND HOMEWATCH NETWORK (ENGLAND AND WALES) NETWORK (G),1001857772,"89,500.00"
Home Office,Home Office,21/04/2016,CPG - Crime & Policing Group,Grant,SUPERINTENDENTS ASSOCIATION (G),1001857779,"150,273.00"
Home Office,Home Office,22/04/2016,CPG - Crime & Policing Group,Education & Training Services,CAPITA BUSINESS SERVICES LTD,1001858263,"48,000.00"
Home Office,Home Office,22/04/2016,CPG - Crime & Policing Group,Grant,DORSET POLICE & CRIME COMMISSIONERS (G),1001858202,"48,221.00"
Home Office,Home Office,22/04/2016,CPG - Crime & Policing Group,"Science, Technical & Research",MARKET & OPINION RESEARCH INTERNATIONAL LTD T/A IPSOS MRI,1001858303,"60,000.00"
Home Office,Home Office,22/04/2016,CPG - Crime & Policing Group,Healthcare Services,SALVATION ARMY (THE),1001858343,"808,648.57"
Home Office,Home Office,25/04/2016,CPG - Crime & Policing Group,Grant,INDEPENDENT POLICE COMPLAINTS COMISSION (G),3000052216,"2,000,000.00"
Home Office,Home Office,25/04/2016,CPG - Crime & Policing Group,"Professional, Management, Outsourcing & Admin Services",PA CONSULTING SERVICES LTD,1001858929,"126,411.12"
Home Office,Home Office,01/04/2016,CSG - Corporate Services Group,"IT, TelecommsSoftware",FUJITSU SERVICES LTD,1001850405,"54,939.50"
Home Office,Home Office,01/04/2016,CSG - Corporate Services Group,Nat Applications ICT,IPL INFORMATION PROCESSING LTD,1001850440,"10,568.40"
Home Office,Home Office,01/04/2016,CSG - Corporate Services Group,Nat Applications ICT,IPL INFORMATION PROCESSING LTD,1001850440,"12,963.15"
Home Office,Home Office,01/04/2016,CSG - Corporate Services Group,Nat Applications ICT,IPL INFORMATION PROCESSING LTD,1001850440,"10,465.65"
Home Office,Home Office,05/04/2016,CSG - Corporate Services Group,"IT, TelecommsSoftware",FUJITSU SERVICES LTD,1001851753,"54,931.75"
Home Office,Home Office,05/04/2016,CSG - Corporate Services Group,Legal Fees,DATALYNX LTD,1001851741,"73,978.80"
Home Office,Home Office,05/04/2016,CSG - Corporate Services Group,Citizen Ceremonies,FUJITSU SERVICES LTD,1001851753,"30,685.81"
Home Office,Home Office,07/04/2016,CSG - Corporate Services Group,Nat Applications ICT,NORTHGATE PUBLIC SERVICES (UK) LTD,1001852705,"45,000.00"
Home Office,Home Office,07/04/2016,CSG - Corporate Services Group,"Building, Construction Service",AMEY COMMUNITY LTD,1001852632,"75,995.04"
Home Office,Home Office,07/04/2016,CSG - Corporate Services Group,Facilities management Services,AMEY COMMUNITY LTD,1001852632,"74,853.68"
Home Office,Home Office,08/04/2016,CSG - Corporate Services Group,Misc Serv - non OGDs,BAE SYSTEMS APPLIED INTELLIGENCE LIMITED,1001853194,"251,295.00"
Home Office,Home Office,13/04/2016,CSG - Corporate Services Group,"IT, Broadcasting & Telecomms, Components & Run Costs",FUJITSU SERVICES LTD,1001854886,"107,869.03"
Home Office,Home Office,15/04/2016,CSG - Corporate Services Group,"Science, Technical & Research",BASWARE SHARED SERVICES LTD,1001855818,"1,290,000.00"
Home Office,Home Office,15/04/2016,CSG - Corporate Services Group,Citizen Ceremonies,CAPITA BUSINESS SERVICES LTD (E),1001855867,"61,803.66"
Home Office,Home Office,15/04/2016,CSG - Corporate Services Group,"Professional, Management, Outsourcing & Admin Services",ADVANTAGE TECHNICAL RESOURCING,1001855800,"32,150.52"
Home Office,Home Office,15/04/2016,CSG - Corporate Services Group,"Professional, Management, Outsourcing & Admin Services",ADVANTAGE TECHNICAL RESOURCING,1001855800,"10,002.38"
Home Office,Home Office,19/04/2016,CSG - Corporate Services Group,"IT, Tele ApplicationConsultancy&Development",MEDLEY BUSINESS SOLUTIONS LTD,1001856951,"48,755.52"
Home Office,Home Office,22/04/2016,CSG - Corporate Services Group,Legal Fees,CAPITA BUSINESS SERVICES LTD (E),1001858270,"72,294.34"
Home Office,Home Office,25/04/2016,CSG - Corporate Services Group,"IT, Broadcasting & Telecomms, Components & Run Costs",SHARED SERVICES CONNECTED LTD (SSCL),1001858954,"1,471,958.71"
Home Office,Home Office,25/04/2016,CSG - Corporate Services Group,"IT, Tele ApplicationConsultancy&Development",MEDLEY BUSINESS SOLUTIONS LTD,1001858912,"33,341.44"
Home Office,Home Office,25/04/2016,CSG - Corporate Services Group,"IT, Tele ApplicationConsultancy&Development",MEDLEY BUSINESS SOLUTIONS LTD,1001858912,"127,976.64"
Home Office,Home Office,04/04/2016,CSL - Civil Service Learning ,"IT, Broadcasting & Telecomms, Components & Run Costs",CABINET OFFICE,1001851153,"83,959.20"
Home Office,Home Office,04/04/2016,CSL - Civil Service Learning ,"IT, Broadcasting & Telecomms, Components & Run Costs",CAPITA BUSINESS SERVICES LTD,1001851154,"240,404.04"
Home Office,Home Office,04/04/2016,CSL - Civil Service Learning ,"IT, Broadcasting & Telecomms, Components & Run Costs",CAPITA BUSINESS SERVICES LTD,1001851154,"42,424.24"
Home Office,Home Office,05/04/2016,CSL - Civil Service Learning ,"IT, Broadcasting & Telecomms, Components & Run Costs",KAINOS,1001851767,"41,283.24"
Home Office,Home Office,06/04/2016,Group Human Resources,"Professional, Management, Outsourcing & Admin Services",MINISTRY OF JUSTICE,3000052139,"167,008.80"
Home Office,Home Office,12/04/2016,Group Human Resources,Education & Training Services,MAYVIN LTD,1001854324,"35,400.00"
Home Office,Home Office,12/04/2016,Group Human Resources,Education & Training Services,MAYVIN LTD,1001854324,"32,700.00"
Home Office,Home Office,12/04/2016,Group Human Resources,Education & Training Services,MAYVIN LTD,1001854324,"37,500.00"
Home Office,Home Office,13/04/2016,Group Human Resources,Education & Training Services,CAPITA BUSINESS SERVICES LTD,1001854829,"28,976.40"
Home Office,Home Office,21/04/2016,Group Human Resources,Education & Training Services,ASHRIDGE EXECUTIVE & ORGANISATION DEVELOPMENT LIMITED (C),1001857845,"9,100.34"
Home Office,Home Office,21/04/2016,Group Human Resources,Education & Training Services,ASHRIDGE EXECUTIVE & ORGANISATION DEVELOPMENT LIMITED (C),1001857845,"12,100.34"
Home Office,Home Office,21/04/2016,Group Human Resources,Education & Training Services,ASHRIDGE EXECUTIVE & ORGANISATION DEVELOPMENT LIMITED (C),1001857845,"5,102.04"
Home Office,Home Office,21/04/2016,Group Human Resources,Education & Training Services,ASHRIDGE EXECUTIVE & ORGANISATION DEVELOPMENT LIMITED (C),1001857845,"15,100.34"
Home Office,Home Office,22/04/2016,Group Human Resources,Education & Training Services,CAPITA BUSINESS SERVICES LTD,1001858263,"42,000.00"
Home Office,Home Office,22/04/2016,Group Human Resources,Education & Training Services,CAPITA BUSINESS SERVICES LTD,1001858263,"48,000.00"
Home Office,Home Office,01/04/2016,HMPO - HM Passport Office,"IT, Broadcasting & Telecomms, Components & Run Costs",CSC COMPUTER SCIENCES CORPORATION,1001850379,"120,217.26"
Home Office,Home Office,01/04/2016,HMPO - HM Passport Office,"IT, Broadcasting & Telecomms, Components & Run Costs",CSC COMPUTER SCIENCES CORPORATION,1001850379,"33,119.26"
Home Office,Home Office,01/04/2016,HMPO - HM Passport Office,Asset Clearing,CSC COMPUTER SCIENCES CORPORATION,1001850379,"21,905.58"
Home Office,Home Office,01/04/2016,HMPO - HM Passport Office,"IT, TelecommsManaged Service",CSC COMPUTER SCIENCES CORPORATION,1001850379,"173,832.46"
Home Office,Home Office,01/04/2016,HMPO - HM Passport Office,Secure Delivery Costs,DX NETWORK SERVICES LTD,1001850394,"1,362,049.14"
Home Office,Home Office,01/04/2016,HMPO - HM Passport Office,Facilities management Services,GRESHAM OFFICE FURNITURE LTD,1001850415,"33,696.10"
Home Office,Home Office,01/04/2016,HMPO - HM Passport Office,Facilities management Services,GRESHAM OFFICE FURNITURE LTD,1001850415,"60,235.06"
Home Office,Home Office,04/04/2016,HMPO - HM Passport Office,"IT, Broadcasting & Telecomms, Components & Run Costs",CSC COMPUTER SCIENCES CORPORATION,1001851164,"11,846.36"
Home Office,Home Office,04/04/2016,HMPO - HM Passport Office,"IT, Broadcasting & Telecomms, Components & Run Costs",CSC COMPUTER SCIENCES CORPORATION,1001851164,"8,285.51"
Home Office,Home Office,04/04/2016,HMPO - HM Passport Office,"IT, Broadcasting & Telecomms, Components & Run Costs",CSC COMPUTER SCIENCES CORPORATION,1001851164,"9,111.76"
Home Office,Home Office,04/04/2016,HMPO - HM Passport Office,"IT, Broadcasting & Telecomms, Components & Run Costs",CSC COMPUTER SCIENCES CORPORATION,1001851164,"25,606.76"
Home Office,Home Office,04/04/2016,HMPO - HM Passport Office,"IT, Broadcasting & Telecomms, Components & Run Costs",CSC COMPUTER SCIENCES CORPORATION,1001851164,"24,161.49"
Home Office,Home Office,04/04/2016,HMPO - HM Passport Office,"IT, Broadcasting & Telecomms, Components & Run Costs",CSC COMPUTER SCIENCES CORPORATION,1001851164,"8,593.98"
Home Office,Home Office,04/04/2016,HMPO - HM Passport Office,"IT, Broadcasting & Telecomms, Components & Run Costs",CSC COMPUTER SCIENCES CORPORATION,1001851164,"10,810.45"
Home Office,Home Office,05/04/2016,HMPO - HM Passport Office,"IT, Broadcasting & Telecomms, Components & Run Costs",CSC COMPUTER SCIENCES CORPORATION,1001851739,"62,003.79"
Home Office,Home Office,05/04/2016,HMPO - HM Passport Office,"IT, Broadcasting & Telecomms, Components & Run Costs",CSC COMPUTER SCIENCES CORPORATION,1001851739,"43,999.94"
Home Office,Home Office,05/04/2016,HMPO - HM Passport Office,"IT, Broadcasting & Telecomms, Components & Run Costs",CSC COMPUTER SCIENCES CORPORATION,1001851739,"36,523.59"
Home Office,Home Office,05/04/2016,HMPO - HM Passport Office,"IT, Broadcasting & Telecomms, Components & Run Costs",CSC COMPUTER SCIENCES CORPORATION,1001851739,"82,978.39"
Home Office,Home Office,05/04/2016,HMPO - HM Passport Office,"IT, Broadcasting & Telecomms, Components & Run Costs",CSC COMPUTER SCIENCES CORPORATION,1001851739,"67,672.16"
Home Office,Home Office,05/04/2016,HMPO - HM Passport Office,"IT, Broadcasting & Telecomms, Components & Run Costs",CSC COMPUTER SCIENCES CORPORATION,1001851739,"63,593.04"
Home Office,Home Office,05/04/2016,HMPO - HM Passport Office,"IT, Broadcasting & Telecomms, Components & Run Costs",CSC COMPUTER SCIENCES CORPORATION,1001851739,"7,735.61"
Home Office,Home Office,05/04/2016,HMPO - HM Passport Office,"IT, Broadcasting & Telecomms, Components & Run Costs",CSC COMPUTER SCIENCES CORPORATION,1001851739,"7,216.09"
Home Office,Home Office,05/04/2016,HMPO - HM Passport Office,"IT, Broadcasting & Telecomms, Components & Run Costs",CSC COMPUTER SCIENCES CORPORATION,1001851739,"38,964.00"
Home Office,Home Office,05/04/2016,HMPO - HM Passport Office,"IT, Broadcasting & Telecomms, Components & Run Costs",CSC COMPUTER SCIENCES CORPORATION,1001851738,"160,655.31"
Home Office,Home Office,05/04/2016,HMPO - HM Passport Office,"IT, Broadcasting & Telecomms, Components & Run Costs",CSC COMPUTER SCIENCES CORPORATION,1001851738,"264,049.70"
Home Office,Home Office,05/04/2016,HMPO - HM Passport Office,"IT, Broadcasting & Telecomms, Components & Run Costs",CSC COMPUTER SCIENCES CORPORATION,1001851738,"159,962.74"
Home Office,Home Office,05/04/2016,HMPO - HM Passport Office,"IT, Broadcasting & Telecomms, Components & Run Costs",CSC COMPUTER SCIENCES CORPORATION,1001851738,"228,064.09"
Home Office,Home Office,05/04/2016,HMPO - HM Passport Office,"IT, Broadcasting & Telecomms, Components & Run Costs",CSC COMPUTER SCIENCES CORPORATION,1001851738,"194,766.84"
Home Office,Home Office,05/04/2016,HMPO - HM Passport Office,"IT, Broadcasting & Telecomms, Components & Run Costs",CSC COMPUTER SCIENCES CORPORATION,1001851738,"162,773.91"
Home Office,Home Office,05/04/2016,HMPO - HM Passport Office,"IT, Broadcasting & Telecomms, Components & Run Costs",CSC COMPUTER SCIENCES CORPORATION,1001851738,"167,818.50"
Home Office,Home Office,05/04/2016,HMPO - HM Passport Office,"IT, Broadcasting & Telecomms, Components & Run Costs",CSC COMPUTER SCIENCES CORPORATION,1001851738,"176,140.28"
Home Office,Home Office,05/04/2016,HMPO - HM Passport Office,"IT, Broadcasting & Telecomms, Components & Run Costs",CSC COMPUTER SCIENCES CORPORATION,1001851738,"186,229.05"
Home Office,Home Office,05/04/2016,HMPO - HM Passport Office,"IT, Broadcasting & Telecomms, Components & Run Costs",CSC COMPUTER SCIENCES CORPORATION,1001851738,"303,404.32"
Home Office,Home Office,05/04/2016,HMPO - HM Passport Office,"IT, Broadcasting & Telecomms, Components & Run Costs",CSC COMPUTER SCIENCES CORPORATION,1001851738,"187,958.93"
Home Office,Home Office,05/04/2016,HMPO - HM Passport Office,"IT, Broadcasting & Telecomms, Components & Run Costs",CSC COMPUTER SCIENCES CORPORATION,1001851738,"366,641.37"
Home Office,Home Office,05/04/2016,HMPO - HM Passport Office,"IT, Broadcasting & Telecomms, Components & Run Costs",CSC COMPUTER SCIENCES CORPORATION,1001851738,"164,885.16"
Home Office,Home Office,05/04/2016,HMPO - HM Passport Office,"IT, Broadcasting & Telecomms, Components & Run Costs",CSC COMPUTER SCIENCES CORPORATION,1001851738,"189,498.01"
Home Office,Home Office,05/04/2016,HMPO - HM Passport Office,"IT, Broadcasting & Telecomms, Components & Run Costs",CSC COMPUTER SCIENCES CORPORATION,1001851738,"206,406.59"
Home Office,Home Office,06/04/2016,HMPO - HM Passport Office,Security Guard Services Other costs,COMMUNICATIONS ELECTRONICS SECURITY GROUP (CESG),1001852181,"27,895.20"
Home Office,Home Office,06/04/2016,HMPO - HM Passport Office,"Professional, Management, Outsourcing & Admin Services",DE LA RUE INTERNATIONAL LTD,6200059696,"-919,789.99"
Home Office,Home Office,06/04/2016,HMPO - HM Passport Office,"Transport, Storage & Mail Services",DE LA RUE INTERNATIONAL LTD,6200059696,"-919,789.20"
Home Office,Home Office,06/04/2016,HMPO - HM Passport Office,Office Equipment & Machines,DE LA RUE INTERNATIONAL LTD,6200059696,"-919,790.58"
Home Office,Home Office,06/04/2016,HMPO - HM Passport Office,Passport Production,DE LA RUE INTERNATIONAL LTD,6200059696,"-919,966.16"
Home Office,Home Office,07/04/2016,HMPO - HM Passport Office,"Professional, Management, Outsourcing & Admin Services",DE LA RUE INTERNATIONAL LTD,1001852661,"-952,457.00"
Home Office,Home Office,07/04/2016,HMPO - HM Passport Office,"Transport, Storage & Mail Services",DE LA RUE INTERNATIONAL LTD,1001852661,"-934,503.79"
Home Office,Home Office,07/04/2016,HMPO - HM Passport Office,Office Equipment & Machines,DE LA RUE INTERNATIONAL LTD,1001852661,"-965,955.02"
Home Office,Home Office,07/04/2016,HMPO - HM Passport Office,Passport Production,DE LA RUE INTERNATIONAL LTD,1001852661,"-4,986,198.02"
Home Office,Home Office,07/04/2016,HMPO - HM Passport Office,"Professional, Management, Outsourcing & Admin Services",DE LA RUE INTERNATIONAL LTD,1001852661,"955,904.36"
Home Office,Home Office,07/04/2016,HMPO - HM Passport Office,"Transport, Storage & Mail Services",DE LA RUE INTERNATIONAL LTD,1001852661,"936,056.63"
Home Office,Home Office,07/04/2016,HMPO - HM Passport Office,Office Equipment & Machines,DE LA RUE INTERNATIONAL LTD,1001852661,"970,826.78"
Home Office,Home Office,07/04/2016,HMPO - HM Passport Office,Passport Production,DE LA RUE INTERNATIONAL LTD,1001852661,"5,415,309.31"
Home Office,Home Office,08/04/2016,HMPO - HM Passport Office,"IT, Broadcasting & Telecomms, Components & Run Costs",CSC COMPUTER SCIENCES CORPORATION,1001853259,"45,569.62"
Home Office,Home Office,08/04/2016,HMPO - HM Passport Office,Facilities management Services,GRESHAM OFFICE FURNITURE LTD,1001853277,"90,761.11"
Home Office,Home Office,11/04/2016,HMPO - HM Passport Office,Secure Delivery Costs,DHL GLOBAL FORWARDING UK LTD,1001853795,"720,148.16"
Home Office,Home Office,11/04/2016,HMPO - HM Passport Office,Secure Delivery Costs,DHL GLOBAL FORWARDING UK LTD,1001853795,"239,466.78"
Home Office,Home Office,11/04/2016,HMPO - HM Passport Office,"IT, Broadcasting & Telecomms, Components & Run Costs",SPECIALIST COMPUTER CENTRES PLC,1001853850,"25,630.60"
Home Office,Home Office,12/04/2016,HMPO - HM Passport Office,"IT, TelecommsManaged Service",CSC COMPUTER SCIENCES CORPORATION,1001854292,"173,832.46"
Home Office,Home Office,12/04/2016,HMPO - HM Passport Office,Passport Production,WILLIAMS LEA,1001854371,"86,355.36"
Home Office,Home Office,12/04/2016,HMPO - HM Passport Office,Passport Production,WILLIAMS LEA,1001854371,"39,410.28"
Home Office,Home Office,12/04/2016,HMPO - HM Passport Office,Passport Production,WILLIAMS LEA,1001854371,"55,560.96"
Home Office,Home Office,13/04/2016,HMPO - HM Passport Office,Passport Production,CSC COMPUTER SCIENCES CORPORATION,1001854852,"522,000.00"
Home Office,Home Office,13/04/2016,HMPO - HM Passport Office,"Transport, Storage & Mail Services",OFFICE FOR NATIONAL STATISTICS (ONS),3000052160,"26,144.57"
Home Office,Home Office,13/04/2016,HMPO - HM Passport Office,"Transport, Storage & Mail Services",OFFICE FOR NATIONAL STATISTICS (ONS),3000052160,"50,793.71"
Home Office,Home Office,14/04/2016,HMPO - HM Passport Office,Facilities management Services,GRESHAM OFFICE FURNITURE LTD,1001855420,"49,584.26"
Home Office,Home Office,15/04/2016,HMPO - HM Passport Office,"Professional, Management, Outsourcing & Admin Services",CARILLION (MAPLE OAK) LTD,1001855868,"121,144.33"
Home Office,Home Office,15/04/2016,HMPO - HM Passport Office,"Building, Construction Service",CARILLION (MAPLE OAK) LTD,1001855868,"73,123.63"
Home Office,Home Office,15/04/2016,HMPO - HM Passport Office,Secure Delivery Costs,DX NETWORK SERVICES LTD,1001855885,"1,593,284.28"
Home Office,Home Office,15/04/2016,HMPO - HM Passport Office,Facilities management Services,TEMPLE STOCK LTD,1001855962,216
Home Office,Home Office,15/04/2016,HMPO - HM Passport Office,Facilities management Services,TEMPLE STOCK LTD,1001855962,"19,159.20"
Home Office,Home Office,15/04/2016,HMPO - HM Passport Office,Facilities management Services,TEMPLE STOCK LTD,1001855962,"2,016.00"
Home Office,Home Office,15/04/2016,HMPO - HM Passport Office,Facilities management Services,TEMPLE STOCK LTD,1001855962,272.16
Home Office,Home Office,15/04/2016,HMPO - HM Passport Office,Facilities management Services,TEMPLE STOCK LTD,1001855962,456
Home Office,Home Office,15/04/2016,HMPO - HM Passport Office,Facilities management Services,TEMPLE STOCK LTD,1001855962,"2,630.40"
Home Office,Home Office,15/04/2016,HMPO - HM Passport Office,Facilities management Services,TEMPLE STOCK LTD,1001855962,"1,612.80"
Home Office,Home Office,20/04/2016,HMPO - HM Passport Office,Passport Production,DE LA RUE INTERNATIONAL LTD,1001857444,"5,712,504.44"
Home Office,Home Office,20/04/2016,HMPO - HM Passport Office,Secure Delivery Costs,DX NETWORK SERVICES LTD,1001857447,"51,909.99"
Home Office,Home Office,20/04/2016,HMPO - HM Passport Office,Passport Production,TELEPERFORMANCE LTD,6200059715,"55,950.19"
Home Office,Home Office,20/04/2016,HMPO - HM Passport Office,Passport Production,TELEPERFORMANCE LTD,6200059715,"761,334.61"
Home Office,Home Office,22/04/2016,HMPO - HM Passport Office,Education & Training Services,CAPITA BUSINESS SERVICES LTD,1001858263,"21,600.00"
Home Office,Home Office,25/04/2016,HMPO - HM Passport Office,Passport Production,SOPRA STERIA LTD,1001858955,"342,766.03"
Home Office,Home Office,25/04/2016,HMPO - HM Passport Office,Passport Production,SOPRA STERIA LTD,1001858955,"323,947.31"
Home Office,Home Office,25/04/2016,HMPO - HM Passport Office,Passport Production,SOPRA STERIA LTD,1001858955,"319,727.55"
Home Office,Home Office,25/04/2016,HMPO - HM Passport Office,Passport Production,SOPRA STERIA LTD,1001858955,"326,284.58"
Home Office,Home Office,25/04/2016,HMPO - HM Passport Office,Passport Production,SOPRA STERIA LTD,1001858955,"332,431.34"
Home Office,Home Office,25/04/2016,HMPO - HM Passport Office,Passport Production,SOPRA STERIA LTD,1001858955,"1,412,471.38"
Home Office,Home Office,25/04/2016,HMPO - HM Passport Office,Passport Production,SOPRA STERIA LTD,1001858955,"454,325.82"
Home Office,Home Office,25/04/2016,HMPO - HM Passport Office,Passport Production,SOPRA STERIA LTD,1001858955,"321,006.08"
Home Office,Home Office,25/04/2016,HMPO - HM Passport Office,Passport Production,SOPRA STERIA LTD,1001858955,"330,427.25"
Home Office,Home Office,25/04/2016,HMPO - HM Passport Office,Passport Production,SOPRA STERIA LTD,1001858955,"366,135.31"
Home Office,Home Office,25/04/2016,HMPO - HM Passport Office,Passport Production,SOPRA STERIA LTD,1001858955,"327,393.13"
Home Office,Home Office,25/04/2016,HMPO - HM Passport Office,Passport Production,SOPRA STERIA LTD,1001858955,"353,819.38"
Home Office,Home Office,25/04/2016,HMPO - HM Passport Office,Passport Production,SOPRA STERIA LTD,1001858955,"328,564.35"
Home Office,Home Office,25/04/2016,HMPO - HM Passport Office,Passport Production,SOPRA STERIA LTD,1001858955,"529,548.37"
Home Office,Home Office,28/04/2016,HMPO - HM Passport Office,"IT, TelecommsManaged Service",CSC COMPUTER SCIENCES CORPORATION,6200059828,"45,597.14"
Home Office,Home Office,28/04/2016,HMPO - HM Passport Office,"IT, TelecommsManaged Service",CSC COMPUTER SCIENCES CORPORATION,6200059828,"-45,597.14"
Home Office,Home Office,01/04/2016,HOS - Home Office Science,"Professional, Management, Outsourcing & Admin Services",MARKET & OPINION RESEARCH INTERNATIONAL LTD T/A IPSOS MRI,1001850466,"54,840.00"
Home Office,Home Office,01/04/2016,HOS - Home Office Science,Laboratory & Scientific Equipment,PERKIN ELMER LAS UK LTD,1001850505,"45,290.88"
Home Office,Home Office,01/04/2016,HOS - Home Office Science,"Science, Technical & Research",UNIVERSITY OF BEDFORDSHIRE,1001850588,"27,708.62"
Home Office,Home Office,07/04/2016,HOS - Home Office Science,"Building, Construction Service",AMEY COMMUNITY LTD,1001852632,"4,538.89"
Home Office,Home Office,07/04/2016,HOS - Home Office Science,"Building, Construction Service",AMEY COMMUNITY LTD,1001852632,"128,740.61"
Home Office,Home Office,11/04/2016,HOS - Home Office Science,"Professional, Management, Outsourcing & Admin Services",HM REVENUE & CUSTOMS,1001853811,"41,328.00"
Home Office,Home Office,18/04/2016,HOS - Home Office Science,"Science, Technical & Research",NOVA AEROSPACE LTD T/A NOVA SYSTEMS UK,1001856511,"12,712.40"
Home Office,Home Office,18/04/2016,HOS - Home Office Science,"Science, Technical & Research",NOVA AEROSPACE LTD T/A NOVA SYSTEMS UK,1001856511,"7,212.40"
Home Office,Home Office,18/04/2016,HOS - Home Office Science,"Science, Technical & Research",NOVA AEROSPACE LTD T/A NOVA SYSTEMS UK,1001856511,"35,374.40"
Home Office,Home Office,19/04/2016,HOS - Home Office Science,"Science, Technical & Research",MARKET & OPINION RESEARCH INTERNATIONAL LTD T/A IPSOS MRI,1001856950,"51,079.50"
Home Office,Home Office,20/04/2016,HOS - Home Office Science,Editorial  & Design Services.Photocopying,MASS CONSULTANTS LTD,1001857469,"27,648.00"
Home Office,Home Office,01/04/2016,IIPG - International & Immigration Policy Group,Advertising Media,LAPIS MEA FZ LLC,7000011151,"48,342.00"
Home Office,Home Office,07/04/2016,IIPG - International & Immigration Policy Group,Grant,IMMIGRATION AND NATURALIZATION SERVICE (G),7000011174,"210,080.98"
Home Office,Home Office,11/04/2016,IIPG - International & Immigration Policy Group,Advertising Media,FARSIGHT SERVICES LTD,7000011177,"120,000.00"
Home Office,Home Office,25/04/2016,IIPG - International & Immigration Policy Group,Grant,SUSTAINABLE CRIMINAL JUSTICE SOLUTIONS (G),7000011222,"54,146.59"
Home Office,Home Office,05/04/2016,OSCT - Office of Security and Counter-Terrorism,Grant,COMMUNITY SECURITY TRUST (G),1001851555,"1,541,534.23"
Home Office,Home Office,05/04/2016,OSCT - Office of Security and Counter-Terrorism,Education & Training Services,TENBOSS LTD,1001851802,"98,400.00"
Home Office,Home Office,08/04/2016,OSCT - Office of Security and Counter-Terrorism,Secure Delivery Costs,TIM PARRY JOHNATHAN BALL FOUNDATION FOR PEACE,1001853343,"136,045.15"
Home Office,Home Office,12/04/2016,OSCT - Office of Security and Counter-Terrorism,"IT, TelecommsManaged Service",GOVERNMENT COMMUNICATION BUREAU,3000052153,"303,500.00"
Home Office,Home Office,14/04/2016,OSCT - Office of Security and Counter-Terrorism,Grant,NATURAL RESOURCES BODY FOR WALES (G),3000052172,"44,959.19"
Home Office,Home Office,20/04/2016,OSCT - Office of Security and Counter-Terrorism,Advertising Media,DENTSU AEGIS UK LIMITED,1001857445,"59,264.71"
Home Office,Home Office,21/04/2016,OSCT - Office of Security and Counter-Terrorism,Grant,BIRMINGHAM CITY COUNCIL (G),1001857769,"26,548.92"
Home Office,Home Office,21/04/2016,OSCT - Office of Security and Counter-Terrorism,Secure Delivery Costs,BUSINESS IN THE COMMUNITY (BITC),1001857866,"78,680.00"
Home Office,Home Office,21/04/2016,OSCT - Office of Security and Counter-Terrorism,Grant,DEPARTMENT OF HEALTH (G),3000052203,"49,216.00"
Home Office,Home Office,21/04/2016,OSCT - Office of Security and Counter-Terrorism,Grant,DEPARTMENT OF HEALTH (G),3000052203,"84,462.00"
Home Office,Home Office,21/04/2016,OSCT - Office of Security and Counter-Terrorism,Grant,LONDON BOROUGH OF WALTHAM FOREST (G),1001857771,"87,500.00"
Home Office,Home Office,21/04/2016,OSCT - Office of Security and Counter-Terrorism,Secure Delivery Costs,PARENT ZONE,1001857916,"46,000.00"
Home Office,Home Office,22/04/2016,OSCT - Office of Security and Counter-Terrorism,Education & Training Services,CAPITA BUSINESS SERVICES LTD,1001858263,"21,000.00"
Home Office,Home Office,22/04/2016,OSCT - Office of Security and Counter-Terrorism,Secure Delivery Costs,DEMOS,1001858278,"31,946.30"
Home Office,Home Office,25/04/2016,OSCT - Office of Security and Counter-Terrorism,Advertising Media,MEDIACOM HOLDINGS LTD,1001858911,"32,400.00"
Home Office,Home Office,25/04/2016,OSCT - Office of Security and Counter-Terrorism,Grant,LONDON BOROUGH OF BRENT (G),1001858693,"36,885.63"
Home Office,Home Office,25/04/2016,OSCT - Office of Security and Counter-Terrorism,"Science, Technical & Research",MARKET & OPINION RESEARCH INTERNATIONAL LTD T/A IPSOS MRI,1001858909,"51,600.00"
Home Office,Home Office,25/04/2016,OSCT - Office of Security and Counter-Terrorism,"IT, Tele ApplicationConsultancy&Development",RABBITSOFT LTD T/A CLINKED,1001858950,"6,000.00"
Home Office,Home Office,25/04/2016,OSCT - Office of Security and Counter-Terrorism,"IT, Tele ApplicationConsultancy&Development",RABBITSOFT LTD T/A CLINKED,1001858950,"48,000.00"
Home Office,Home Office,27/04/2016,OSCT - Office of Security and Counter-Terrorism,Grant,CROWN PROSECUTION SERVICE (G),3000052223,"50,718.00"
Home Office,Home Office,27/04/2016,OSCT - Office of Security and Counter-Terrorism,Grant,NATIONAL CRIME AGENCY (NCA) (G),3000052230,"308,481.27"
Home Office,Home Office,27/04/2016,OSCT - Office of Security and Counter-Terrorism,Grant,NATIONAL CRIME AGENCY (NCA) (G),3000052230,"1,185,000.00"
Home Office,Home Office,01/04/2016,UKBF - UK Border Force,"Vehicles, Ships, Airplanes",BABCOCK MARINE & TECHNOLOGY (ROSYTH),1001850301,"333,488.15"
Home Office,Home Office,01/04/2016,UKBF - UK Border Force,"Vehicles, Ships, Airplanes",BABCOCK MARINE & TECHNOLOGY (ROSYTH),1001850301,"205,073.00"
Home Office,Home Office,01/04/2016,UKBF - UK Border Force,"IT, Broadcasting & Telecomms, Components & Run Costs",CAPGEMINI UK PLC,1001850352,"56,911.20"
Home Office,Home Office,01/04/2016,UKBF - UK Border Force,"IT, Broadcasting & Telecomms, Components & Run Costs",CAPGEMINI UK PLC,1001850352,"54,788.21"
Home Office,Home Office,01/04/2016,UKBF - UK Border Force,"IT, Broadcasting & Telecomms, Components & Run Costs",CAPGEMINI UK PLC,1001850352,"61,085.40"
Home Office,Home Office,01/04/2016,UKBF - UK Border Force,"IT, Broadcasting & Telecomms, Components & Run Costs",CAPGEMINI UK PLC,1001850352,"40,639.20"
Home Office,Home Office,01/04/2016,UKBF - UK Border Force,"IT, Broadcasting & Telecomms, Components & Run Costs",CAPGEMINI UK PLC,1001850352,"84,751.94"
Home Office,Home Office,01/04/2016,UKBF - UK Border Force,"IT, Broadcasting & Telecomms, Components & Run Costs",CAPGEMINI UK PLC,1001850352,"77,826.02"
Home Office,Home Office,01/04/2016,UKBF - UK Border Force,"Vehicles, Ships, Airplanes",CHESS DYNAMICS LTD,1001850365,"448,969.96"
Home Office,Home Office,01/04/2016,UKBF - UK Border Force,Laboratory & Scientific Equipment,FOSTER & FREEMAN LTD,1001850402,"2,695.20"
Home Office,Home Office,01/04/2016,UKBF - UK Border Force,Laboratory & Scientific Equipment,FOSTER & FREEMAN LTD,1001850402,360
Home Office,Home Office,01/04/2016,UKBF - UK Border Force,Laboratory & Scientific Equipment,FOSTER & FREEMAN LTD,1001850402,"2,345.23"
Home Office,Home Office,01/04/2016,UKBF - UK Border Force,Laboratory & Scientific Equipment,FOSTER & FREEMAN LTD,1001850402,"24,471.79"
Home Office,Home Office,01/04/2016,UKBF - UK Border Force,Laboratory & Scientific Equipment,FOSTER & FREEMAN LTD,1001850402,465.22
Home Office,Home Office,01/04/2016,UKBF - UK Border Force,Laboratory & Scientific Equipment,FOSTER & FREEMAN LTD,1001850402,526.94
Home Office,Home Office,01/04/2016,UKBF - UK Border Force,Laboratory & Scientific Equipment,FOSTER & FREEMAN LTD,1001850402,"2,619.29"
Home Office,Home Office,01/04/2016,UKBF - UK Border Force,"Airport parking, Local council parking, Private owned car parks, Other parking",GATWICK AIRPORT LTD,1001850408,278.7
Home Office,Home Office,01/04/2016,UKBF - UK Border Force,"Airport parking, Local council parking, Private owned car parks, Other parking",GATWICK AIRPORT LTD,1001850408,"27,424.08"
Home Office,Home Office,01/04/2016,UKBF - UK Border Force,"Airport parking, Local council parking, Private owned car parks, Other parking",GATWICK AIRPORT LTD,1001850408,"1,226.28"
Home Office,Home Office,01/04/2016,UKBF - UK Border Force,"Airport parking, Local council parking, Private owned car parks, Other parking",GATWICK AIRPORT LTD,1001850408,55.74
Home Office,Home Office,01/04/2016,UKBF - UK Border Force,"Airport parking, Local council parking, Private owned car parks, Other parking",GATWICK AIRPORT LTD,1001850408,55.74
Home Office,Home Office,01/04/2016,UKBF - UK Border Force,"Airport parking, Local council parking, Private owned car parks, Other parking",GATWICK AIRPORT LTD,1001850408,55.74
Home Office,Home Office,01/04/2016,UKBF - UK Border Force,"IT, Broadcasting & Telecomms, Components & Run Costs",IBM DIRECT UNITED KINGDOM LTD,1001850428,"90,619.20"
Home Office,Home Office,01/04/2016,UKBF - UK Border Force,"IT, Broadcasting & Telecomms, Components & Run Costs",IBM DIRECT UNITED KINGDOM LTD,1001850428,"268,033.20"
Home Office,Home Office,01/04/2016,UKBF - UK Border Force,"IT, Broadcasting & Telecomms, Components & Run Costs",IBM DIRECT UNITED KINGDOM LTD,1001850428,"227,455.20"
Home Office,Home Office,01/04/2016,UKBF - UK Border Force,"Vehicles, Ships, Airplanes",MINISTRY OF DEFENCE,7000011154,"56,541.32"
Home Office,Home Office,01/04/2016,UKBF - UK Border Force,"IT, Broadcasting & Telecomms, Components & Run Costs",SPECIALIST COMPUTER CENTRES PLC,1001850564,"345,047.81"
Home Office,Home Office,01/04/2016,UKBF - UK Border Force,"IT, TelecommsManaged Service",SPECIALIST COMPUTER CENTRES PLC,1001850564,"54,351.26"
Home Office,Home Office,01/04/2016,UKBF - UK Border Force,"Professional, Management, Outsourcing & Admin Services",STANSTED AIRPORT LTD,1001850567,"27,627.60"
Home Office,Home Office,01/04/2016,UKBF - UK Border Force,"Vehicles, Ships, Airplanes",VOH SUPPORT VESSELS LTD T/A VROON OFFSHORE SERVICES LTD,1001850593,"42,065.83"
Home Office,Home Office,01/04/2016,UKBF - UK Border Force,Animal Material & Supplies,WAGTAIL UK LTD,1001850596,"36,273.89"
Home Office,Home Office,01/04/2016,UKBF - UK Border Force,Animal Material & Supplies,WAGTAIL UK LTD,1001850596,"226,308.00"
Home Office,Home Office,01/04/2016,UKBF - UK Border Force,Animal Material & Supplies,WAGTAIL UK LTD,1001850596,"286,756.61"
Home Office,Home Office,04/04/2016,UKBF - UK Border Force,Law Enforcement & Safety Equipment,ASSOCIATED BRITISH PORTS,1001851144,"161,976.40"
Home Office,Home Office,04/04/2016,UKBF - UK Border Force,Law Enforcement & Safety Equipment,ASSOCIATED BRITISH PORTS,1001851144,"117,858.40"
Home Office,Home Office,04/04/2016,UKBF - UK Border Force,"Professional, Management, Outsourcing & Admin Services",CABINET OFFICE,1001851153,"56,918.78"
Home Office,Home Office,04/04/2016,UKBF - UK Border Force,"IT, Broadcasting & Telecomms, Components & Run Costs",FUJITSU SERVICES LTD,1001851176,"35,323.80"
Home Office,Home Office,04/04/2016,UKBF - UK Border Force,"IT, Broadcasting & Telecomms, Components & Run Costs",FUJITSU SERVICES LTD,1001851176,"33,697.50"
Home Office,Home Office,04/04/2016,UKBF - UK Border Force,"Building, Construction Service",FUJITSU SERVICES LTD,1001851176,"62,938.58"
Home Office,Home Office,04/04/2016,UKBF - UK Border Force,"IT, Tele ApplicationConsultancy&Development",KAINOS,1001851188,"272,736.00"
Home Office,Home Office,04/04/2016,UKBF - UK Border Force,"IT, Tele ApplicationConsultancy&Development",KAINOS,1001851188,"4,308.25"
Home Office,Home Office,04/04/2016,UKBF - UK Border Force,"IT, Broadcasting & Telecomms, Components & Run Costs",VISION-BOX SYSTEMS LTD,1001851236,"196,648.56"
Home Office,Home Office,05/04/2016,UKBF - UK Border Force,"Vehicles, Ships, Airplanes",SENTINEL MARINE LTD,1001851797,"43,180.57"
Home Office,Home Office,06/04/2016,UKBF - UK Border Force,"IT, TelecommsManaged Service",INTTRA INC,7000011161,"493,896.85"
Home Office,Home Office,07/04/2016,UKBF - UK Border Force,"Vehicles, Ships, Airplanes",SENTINEL MARINE LTD,1001852723,"226,300.00"
Home Office,Home Office,07/04/2016,UKBF - UK Border Force,"Vehicles, Ships, Airplanes",VOH SUPPORT VESSELS LTD T/A VROON OFFSHORE SERVICES LTD,1001852737,"240,250.00"
Home Office,Home Office,08/04/2016,UKBF - UK Border Force,Law Enforcement & Safety Equipment,NEWLAND ENGINEERING COMPANY LTD,1001853305,"50,538.00"
Home Office,Home Office,08/04/2016,UKBF - UK Border Force,Law Enforcement & Safety Equipment,NEWLAND ENGINEERING COMPANY LTD,1001853305,"2,376.00"
Home Office,Home Office,08/04/2016,UKBF - UK Border Force,Law Enforcement & Safety Equipment,NEWLAND ENGINEERING COMPANY LTD,1001853305,"1,014.00"
Home Office,Home Office,08/04/2016,UKBF - UK Border Force,Law Enforcement & Safety Equipment,NEWLAND ENGINEERING COMPANY LTD,1001853305,726
Home Office,Home Office,08/04/2016,UKBF - UK Border Force,Law Enforcement & Safety Equipment,NEWLAND ENGINEERING COMPANY LTD,1001853305,948
Home Office,Home Office,11/04/2016,UKBF - UK Border Force,"Professional, Management, Outsourcing & Admin Services",EAMUS CORK SOLUTIONS (ECS),7000011180,"182,367.52"
Home Office,Home Office,11/04/2016,UKBF - UK Border Force,"Professional, Management, Outsourcing & Admin Services",EAMUS CORK SOLUTIONS (ECS),7000011180,"467,816.64"
Home Office,Home Office,12/04/2016,UKBF - UK Border Force,Law Enforcement & Safety Equipment,BRUKER UK LTD,1001854283,"13,770.92"
Home Office,Home Office,12/04/2016,UKBF - UK Border Force,Law Enforcement & Safety Equipment,BRUKER UK LTD,1001854283,"2,794.78"
Home Office,Home Office,12/04/2016,UKBF - UK Border Force,Law Enforcement & Safety Equipment,BRUKER UK LTD,1001854283,"73,543.27"
Home Office,Home Office,12/04/2016,UKBF - UK Border Force,Law Enforcement & Safety Equipment,BRUKER UK LTD,1001854283,"18,497.20"
Home Office,Home Office,12/04/2016,UKBF - UK Border Force,Law Enforcement & Safety Equipment,BRUKER UK LTD,1001854283,"3,960.01"
Home Office,Home Office,12/04/2016,UKBF - UK Border Force,Law Enforcement & Safety Equipment,BRUKER UK LTD,1001854283,"1,007.82"
Home Office,Home Office,12/04/2016,UKBF - UK Border Force,"IT, Broadcasting & Telecomms, Components & Run Costs",SOPRA STERIA LTD,1001854341,"72,457.44"
Home Office,Home Office,12/04/2016,UKBF - UK Border Force,Animal Material & Supplies,WAGTAIL UK LTD,1001854348,"46,086.34"
Home Office,Home Office,12/04/2016,UKBF - UK Border Force,Animal Material & Supplies,WAGTAIL UK LTD,1001854348,"138,259.01"
Home Office,Home Office,13/04/2016,UKBF - UK Border Force,"IT, Broadcasting & Telecomms, Components & Run Costs",FUJITSU SERVICES LTD,1001854886,"255,493.03"
Home Office,Home Office,13/04/2016,UKBF - UK Border Force,"Vehicles, Ships, Airplanes",INCHCAPE FLEET SOLUTIONS LTD,1001854902,"158,757.60"
Home Office,Home Office,13/04/2016,UKBF - UK Border Force,"Vehicles, Ships, Airplanes",INCHCAPE FLEET SOLUTIONS LTD,1001854902,"79,378.80"
Home Office,Home Office,13/04/2016,UKBF - UK Border Force,"Vehicles, Ships, Airplanes",INCHCAPE FLEET SOLUTIONS LTD,1001854902,"31,681.51"
Home Office,Home Office,13/04/2016,UKBF - UK Border Force,"Vehicles, Ships, Airplanes",INCHCAPE FLEET SOLUTIONS LTD,1001854902,"222,172.20"
Home Office,Home Office,13/04/2016,UKBF - UK Border Force,Animal Material & Supplies,WAGTAIL UK LTD,1001855042,"138,259.01"
Home Office,Home Office,14/04/2016,UKBF - UK Border Force,"Professional, Management, Outsourcing & Admin Services",HEWLETT PACKARD ENTERPRISE SERVICES UK LTD,1001855425,"60,698.40"
Home Office,Home Office,14/04/2016,UKBF - UK Border Force,"Vehicles, Ships, Airplanes",VOH SUPPORT VESSELS LTD T/A VROON OFFSHORE SERVICES LTD,1001855478,"31,684.40"
Home Office,Home Office,15/04/2016,UKBF - UK Border Force,"IT, Broadcasting & Telecomms, Components & Run Costs",FUJITSU SERVICES LTD,1001855892,"27,485.28"
Home Office,Home Office,15/04/2016,UKBF - UK Border Force,Law Enforcement & Safety Equipment,HEATHROW AIRPORT LTD,1001855899,"36,600.00"
Home Office,Home Office,18/04/2016,UKBF - UK Border Force,"IT, Broadcasting & Telecomms, Components & Run Costs",CAPGEMINI UK PLC,1001856467,"49,823.20"
Home Office,Home Office,18/04/2016,UKBF - UK Border Force,"IT, Broadcasting & Telecomms, Components & Run Costs",CAPGEMINI UK PLC,1001856467,"48,128.69"
Home Office,Home Office,18/04/2016,UKBF - UK Border Force,"IT, Broadcasting & Telecomms, Components & Run Costs",CAPGEMINI UK PLC,1001856467,"65,605.80"
Home Office,Home Office,18/04/2016,UKBF - UK Border Force,Grant,DFDS A/S (G),7000011191,"47,296.54"
Home Office,Home Office,18/04/2016,UKBF - UK Border Force,Grant,DFDS A/S (G),7000011191,"80,820.22"
Home Office,Home Office,18/04/2016,UKBF - UK Border Force,Grant,DFDS A/S (G),7000011191,"41,831.09"
Home Office,Home Office,18/04/2016,UKBF - UK Border Force,Grant,DFDS A/S (G),7000011191,"129,153.10"
Home Office,Home Office,18/04/2016,UKBF - UK Border Force,Grant,DFDS A/S (G),7000011191,"30,529.27"
Home Office,Home Office,18/04/2016,UKBF - UK Border Force,Grant,INTERIOR MINISTRY OF FRANCE (G),7000011189,"3,985,750.00"
Home Office,Home Office,19/04/2016,UKBF - UK Border Force,National Pay,FOREIGN AND COMMONWEALTH OFFICE,3000052189,186.58
Home Office,Home Office,19/04/2016,UKBF - UK Border Force,National Pay,FOREIGN AND COMMONWEALTH OFFICE,3000052189,90.69
Home Office,Home Office,19/04/2016,UKBF - UK Border Force,National Pay,FOREIGN AND COMMONWEALTH OFFICE,3000052189,181.38
Home Office,Home Office,19/04/2016,UKBF - UK Border Force,Juxtaposed Overseas Posting,FOREIGN AND COMMONWEALTH OFFICE,3000052189,"45,019.09"
Home Office,Home Office,19/04/2016,UKBF - UK Border Force,Juxtaposed Overseas Posting,FOREIGN AND COMMONWEALTH OFFICE,3000052189,"1,266.19"
Home Office,Home Office,19/04/2016,UKBF - UK Border Force,Asset Clearing,FOREIGN AND COMMONWEALTH OFFICE,3000052189,"10,028.48"
Home Office,Home Office,19/04/2016,UKBF - UK Border Force,Juxtaposed Overseas Posting,FOREIGN AND COMMONWEALTH OFFICE,3000052189,"96,954.54"
Home Office,Home Office,19/04/2016,UKBF - UK Border Force,Asset Clearing,FOREIGN AND COMMONWEALTH OFFICE,3000052189,450
Home Office,Home Office,19/04/2016,UKBF - UK Border Force,Juxtaposed Overseas Posting,FOREIGN AND COMMONWEALTH OFFICE,3000052189,"32,621.97"
Home Office,Home Office,19/04/2016,UKBF - UK Border Force,National Pay,FOREIGN AND COMMONWEALTH OFFICE,3000052189,"10,085.72"
Home Office,Home Office,19/04/2016,UKBF - UK Border Force,National Pay,FOREIGN AND COMMONWEALTH OFFICE,3000052189,"2,626.83"
Home Office,Home Office,19/04/2016,UKBF - UK Border Force,National Pay,FOREIGN AND COMMONWEALTH OFFICE,3000052189,"8,111.20"
Home Office,Home Office,19/04/2016,UKBF - UK Border Force,Juxtaposed Overseas Posting,FOREIGN AND COMMONWEALTH OFFICE,3000052189,"39,402.59"
Home Office,Home Office,20/04/2016,UKBF - UK Border Force,"IT, Broadcasting & Telecomms, Components & Run Costs",FUJITSU SERVICES LTD,1001857452,"27,292.08"
Home Office,Home Office,20/04/2016,UKBF - UK Border Force,"Vehicles, Ships, Airplanes",MINISTRY OF DEFENCE,7000011202,"30,708.77"
Home Office,Home Office,20/04/2016,UKBF - UK Border Force,"IT, Broadcasting & Telecomms, Components & Run Costs",SOPRA STERIA LTD,1001857510,"75,259.20"
Home Office,Home Office,20/04/2016,UKBF - UK Border Force,"Professional, Management, Outsourcing & Admin Services",SOPRA STERIA LTD,1001857510,366.16
Home Office,Home Office,21/04/2016,UKBF - UK Border Force,Grant,CHANNEL TUNNEL GROUP LTD (THE) T/A EUROTUNNEL(G),7000011210,"225,787.54"
Home Office,Home Office,21/04/2016,UKBF - UK Border Force,Grant,CHANNEL TUNNEL GROUP LTD (THE) T/A EUROTUNNEL(G),7000011210,"670,571.08"
Home Office,Home Office,21/04/2016,UKBF - UK Border Force,Grant,CHANNEL TUNNEL GROUP LTD (THE) T/A EUROTUNNEL(G),7000011210,"522,000.10"
Home Office,Home Office,21/04/2016,UKBF - UK Border Force,Law Enforcement & Safety Equipment,G4S CASH SOLUTIONS (UK) LTD,1001857891,"27,012.94"
Home Office,Home Office,21/04/2016,UKBF - UK Border Force,Law Enforcement & Safety Equipment,G4S CASH SOLUTIONS (UK) LTD,1001857891,"7,597.93"
Home Office,Home Office,22/04/2016,UKBF - UK Border Force,Grant,CHANNEL TUNNEL GROUP LTD (THE) T/A EUROTUNNEL(G),7000011213,"69,131.64"
Home Office,Home Office,22/04/2016,UKBF - UK Border Force,Grant,CHANNEL TUNNEL GROUP LTD (THE) T/A EUROTUNNEL(G),7000011213,"78,659.26"
Home Office,Home Office,22/04/2016,UKBF - UK Border Force,Grant,CHANNEL TUNNEL GROUP LTD (THE) T/A EUROTUNNEL(G),7000011213,"71,023.33"
Home Office,Home Office,22/04/2016,UKBF - UK Border Force,Grant,CHANNEL TUNNEL GROUP LTD (THE) T/A EUROTUNNEL(G),7000011213,"48,881.65"
Home Office,Home Office,22/04/2016,UKBF - UK Border Force,Grant,CHANNEL TUNNEL GROUP LTD (THE) T/A EUROTUNNEL(G),7000011213,"538,060.58"
Home Office,Home Office,22/04/2016,UKBF - UK Border Force,Grant,CHANNEL TUNNEL GROUP LTD (THE) T/A EUROTUNNEL(G),7000011214,"60,053.72"
Home Office,Home Office,22/04/2016,UKBF - UK Border Force,Grant,CHANNEL TUNNEL GROUP LTD (THE) T/A EUROTUNNEL(G),7000011214,"58,854.21"
Home Office,Home Office,22/04/2016,UKBF - UK Border Force,Grant,CHANNEL TUNNEL GROUP LTD (THE) T/A EUROTUNNEL(G),7000011214,"67,427.11"
Home Office,Home Office,22/04/2016,UKBF - UK Border Force,Grant,CHANNEL TUNNEL GROUP LTD (THE) T/A EUROTUNNEL(G),7000011215,"257,136.04"
Home Office,Home Office,22/04/2016,UKBF - UK Border Force,Grant,CHANNEL TUNNEL GROUP LTD (THE) T/A EUROTUNNEL(G),7000011215,"539,342.99"
Home Office,Home Office,22/04/2016,UKBF - UK Border Force,Grant,CHANNEL TUNNEL GROUP LTD (THE) T/A EUROTUNNEL(G),7000011215,"58,657.81"
Home Office,Home Office,22/04/2016,UKBF - UK Border Force,Grant,CHANNEL TUNNEL GROUP LTD (THE) T/A EUROTUNNEL(G),7000011215,"154,052.77"
Home Office,Home Office,22/04/2016,UKBF - UK Border Force,Law Enforcement & Safety Equipment,HEATHROW AIRPORT LTD,1001858292,"36,600.00"
Home Office,Home Office,22/04/2016,UKBF - UK Border Force,"IT, Broadcasting & Telecomms, Components & Run Costs",SUNGARD AVAILABILITY SERVICES UK LTD,1001858359,"88,998.00"
Home Office,Home Office,22/04/2016,UKBF - UK Border Force,Law Enforcement & Safety Equipment,VETSPEED LTD T/A NOVUS ENVIRONMENTAL,1001858377,"20,328.21"
Home Office,Home Office,22/04/2016,UKBF - UK Border Force,Law Enforcement & Safety Equipment,VETSPEED LTD T/A NOVUS ENVIRONMENTAL,1001858377,"25,555.25"
Home Office,Home Office,25/04/2016,UKBF - UK Border Force,"Vehicles, Ships, Airplanes",BABCOCK MARINE & TECHNOLOGY (ROSYTH),1001858850,"94,160.28"
Home Office,Home Office,25/04/2016,UKBF - UK Border Force,"Transport, Storage & Mail Services",CHANNEL TUNNEL GROUP LTD (THE) T/A EUROTUNNEL,1001858868,"23,952.00"
Home Office,Home Office,25/04/2016,UKBF - UK Border Force,Juxtaposed Overseas Posting,CHANNEL TUNNEL GROUP LTD (THE) T/A EUROTUNNEL,1001858868,"44,400.00"
Home Office,Home Office,25/04/2016,UKBF - UK Border Force,Ex-gratia Payments,EUROPEJSKI FUNDUSZ LEASINGOWY SA,7000011224,"26,031.00"
Home Office,Home Office,25/04/2016,UKBF - UK Border Force,"IT, Broadcasting & Telecomms, Components & Run Costs",IBM DIRECT UNITED KINGDOM LTD,1001858898,"148,658.40"
Home Office,Home Office,25/04/2016,UKBF - UK Border Force,"IT, Broadcasting & Telecomms, Components & Run Costs",IBM DIRECT UNITED KINGDOM LTD,1001858897,"170,515.20"
Home Office,Home Office,25/04/2016,UKBF - UK Border Force,"IT, Broadcasting & Telecomms, Components & Run Costs",IBM DIRECT UNITED KINGDOM LTD,1001858898,"138,168.79"
Home Office,Home Office,25/04/2016,UKBF - UK Border Force,"IT, Broadcasting & Telecomms, Components & Run Costs",IBM DIRECT UNITED KINGDOM LTD,1001858898,"685,304.90"
Home Office,Home Office,25/04/2016,UKBF - UK Border Force,"IT, Tele ApplicationConsultancy&Development",IBM DIRECT UNITED KINGDOM LTD,1001858898,"45,360.00"
Home Office,Home Office,25/04/2016,UKBF - UK Border Force,Ex-gratia Payments,VFS USLUGI FINANSOWE POLSKA SP.Z.O.O,7000011223,"44,033.70"
Home Office,Home Office,25/04/2016,UKBF - UK Border Force,Ex-gratia Payments,VFS USLUGI FINANSOWE POLSKA SP.Z.O.O,7000011223,"41,621.70"
Home Office,Home Office,25/04/2016,UKBF - UK Border Force,Grant,WEST SUSSEX COUNTY COUNCIL (G),1001858698,"69,800.00"
Home Office,Home Office,26/04/2016,UKBF - UK Border Force,"Building, Construction Service",MINISTRY OF JUSTICE,3000052220,"37,672.56"
Home Office,Home Office,27/04/2016,UKBF - UK Border Force,"Vehicles, Ships, Airplanes",PREMIUM BUNKERING SA,7000011226,"94,533.84"
Home Office,Home Office,01/04/2016,UKVI - UK Visa & Immigration,Asylum Services,CARLSON WAGONLIT TRAVEL,1001850359,"84,551.87"
Home Office,Home Office,01/04/2016,UKVI - UK Visa & Immigration,Asylum Services,CARLSON WAGONLIT TRAVEL,1001850359,"121,718.74"
Home Office,Home Office,01/04/2016,UKVI - UK Visa & Immigration,"Airport parking, Local council parking, Private owned car parks, Other parking",GATWICK AIRPORT LTD,1001850408,668.88
Home Office,Home Office,01/04/2016,UKVI - UK Visa & Immigration,HOPG Contracted Out Services,CAPITA BUSINESS SERVICES LTD,1001850354,"230,737.44"
Home Office,Home Office,01/04/2016,UKVI - UK Visa & Immigration,HOPG Contracted Out Services,CAPITA BUSINESS SERVICES LTD,1001850354,"43,382.98"
Home Office,Home Office,01/04/2016,UKVI - UK Visa & Immigration,HOPG Contracted Out Services,CAPITA BUSINESS SERVICES LTD,1001850354,"233,694.48"
Home Office,Home Office,01/04/2016,UKVI - UK Visa & Immigration,HOPG Contracted Out Services,CAPITA BUSINESS SERVICES LTD,1001850354,"236,162.78"
Home Office,Home Office,01/04/2016,UKVI - UK Visa & Immigration,HOPG Contracted Out Services,CAPITA BUSINESS SERVICES LTD,1001850354,"-213,239.42"
Home Office,Home Office,01/04/2016,UKVI - UK Visa & Immigration,HOPG Contracted Out Services,CAPITA BUSINESS SERVICES LTD,1001850354,"-207,663.70"
Home Office,Home Office,01/04/2016,UKVI - UK Visa & Immigration,HOPG Contracted Out Services,CAPITA BUSINESS SERVICES LTD,1001850354,"-236,718.82"
Home Office,Home Office,01/04/2016,UKVI - UK Visa & Immigration,"IT, Broadcasting & Telecomms, Components & Run Costs",SYRENIS LTD,1001850535,"27,810.00"
Home Office,Home Office,01/04/2016,UKVI - UK Visa & Immigration,Grant,BEDFORD BOROUGH COUNCIL (G),1001850108,"51,790.00"
Home Office,Home Office,01/04/2016,UKVI - UK Visa & Immigration,Grant,BIRMINGHAM CITY COUNCIL (G),1001850109,"179,582.00"
Home Office,Home Office,01/04/2016,UKVI - UK Visa & Immigration,Grant,BRIGHTON & HOVE COUNCIL (G),1001850115,"55,806.00"
Home Office,Home Office,01/04/2016,UKVI - UK Visa & Immigration,Grant,BRISTOL CITY COUNCIL 1 (G),1001850116,"147,065.00"
Home Office,Home Office,01/04/2016,UKVI - UK Visa & Immigration,Grant,BUCKINGHAMSHIRE COUNTY COUNCIL 1 (G),1001850117,"49,197.00"
Home Office,Home Office,01/04/2016,UKVI - UK Visa & Immigration,Grant,CAMBRIDGESHIRE COUNTY COUNCIL (G),1001850121,"89,593.00"
Home Office,Home Office,01/04/2016,UKVI - UK Visa & Immigration,Grant,CARDIFF COUNTY COUNCIL 1 (G),1001850122,"27,335.00"
Home Office,Home Office,01/04/2016,UKVI - UK Visa & Immigration,Grant,CENTRAL BEDFORDSHIRE COUNCIL (G),1001850124,"92,677.00"
Home Office,Home Office,01/04/2016,UKVI - UK Visa & Immigration,Grant,CITY OF WAKEFIELD METROPOLITAN DISTRICT COUNCIL (G),1001850129,"35,247.00"
Home Office,Home Office,01/04/2016,UKVI - UK Visa & Immigration,Grant,CORPORATION OF LONDON (G),1001850131,"25,838.00"
Home Office,Home Office,01/04/2016,UKVI - UK Visa & Immigration,Grant,COVENTRY CITY COUNCIL 1 (G),1001850132,"39,751.00"
Home Office,Home Office,01/04/2016,UKVI - UK Visa & Immigration,Grant,CROYDON COUNCIL (G),1001850133,"4,143,122.50"
Home Office,Home Office,01/04/2016,UKVI - UK Visa & Immigration,Grant,CROYDON COUNCIL (G),1001850133,"233,100.00"
Home Office,Home Office,01/04/2016,UKVI - UK Visa & Immigration,Grant,DERBYSHIRE COUNTY COUNCIL (G),1001850135,"30,860.00"
Home Office,Home Office,01/04/2016,UKVI - UK Visa & Immigration,Grant,DNA NETWORKS (G),1001850137,"39,076.64"
Home Office,Home Office,01/04/2016,UKVI - UK Visa & Immigration,Grant,DONCASTER MBC 1 (G),1001850138,"44,019.00"
Home Office,Home Office,01/04/2016,UKVI - UK Visa & Immigration,Grant,ESSEX COUNTY COUNCIL 1 (G),1001850141,"213,076.00"
Home Office,Home Office,01/04/2016,UKVI - UK Visa & Immigration,Grant,GLASGOW CITY COUNCIL 1 (G),1001850143,"88,047.00"
Home Office,Home Office,01/04/2016,UKVI - UK Visa & Immigration,Grant,GLOUCESTERSHIRE COUNTY COUNCIL 1 (G),1001850144,"29,351.00"
Home Office,Home Office,01/04/2016,UKVI - UK Visa & Immigration,Legal Fees,GOVERNMENT LEGAL DEPARTMENT,3000052122,"192,908.00"
Home Office,Home Office,01/04/2016,UKVI - UK Visa & Immigration,Legal Fees,GOVERNMENT LEGAL DEPARTMENT,3000052122,"136,465.92"
Home Office,Home Office,01/04/2016,UKVI - UK Visa & Immigration,Grant,HAMMERSMITH & FULHAM COMMUNITY (G),1001850146,"58,217.00"
Home Office,Home Office,01/04/2016,UKVI - UK Visa & Immigration,Grant,HAMPSHIRE COUNTY COUNCIL 1 (G),1001850147,"51,330.00"
Home Office,Home Office,01/04/2016,UKVI - UK Visa & Immigration,Grant,HERTFORDSHIRE COUNTY COUNCIL 1 (G),1001850149,"148,136.00"
Home Office,Home Office,01/04/2016,UKVI - UK Visa & Immigration,Grant,HORTON HOUSING ASSOCIATION (G),1001850150,"196,189.50"
Home Office,Home Office,01/04/2016,UKVI - UK Visa & Immigration,Grant,HORTON HOUSING ASSOCIATION (G),1001850150,"86,509.50"
Home Office,Home Office,01/04/2016,UKVI - UK Visa & Immigration,Grant,KENT COUNTY COUNCIL 1 (G),1001850152,"2,741,100.00"
Home Office,Home Office,01/04/2016,UKVI - UK Visa & Immigration,Grant,KENT COUNTY COUNCIL 1 (G),1001850152,"249,400.00"
Home Office,Home Office,01/04/2016,UKVI - UK Visa & Immigration,Grant,LB OF BRENT CHILDRENS DIRECTORATE (G),1001850156,"115,282.00"
Home Office,Home Office,01/04/2016,UKVI - UK Visa & Immigration,Grant,LEEDS CITY COUNCIL 1 (G),1001850157,"34,503.00"
Home Office,Home Office,01/04/2016,UKVI - UK Visa & Immigration,Grant,LEICESTER CITY COUNCIL (G),1001850158,"27,140.00"
Home Office,Home Office,01/04/2016,UKVI - UK Visa & Immigration,Grant,LEICESTERSHIRE COUNTY COUNCIL 1 (G),1001850159,"29,493.00"
Home Office,Home Office,01/04/2016,UKVI - UK Visa & Immigration,Grant,LINCOLNSHIRE COUNTY COUNCIL 1 (G),1001850160,"79,496.00"
Home Office,Home Office,01/04/2016,UKVI - UK Visa & Immigration,Grant,LIVERPOOL CITY COUNCIL 1 (G),1001850161,"29,879.00"
Home Office,Home Office,01/04/2016,UKVI - UK Visa & Immigration,Grant,LONDON BOROUGH HAVERING (G),1001850162,"48,040.00"
Home Office,Home Office,01/04/2016,UKVI - UK Visa & Immigration,Grant,LONDON BOROUGH OF BARKING & DAGENHAM (G),1001850163,"40,751.00"
Home Office,Home Office,01/04/2016,UKVI - UK Visa & Immigration,Grant,LONDON BOROUGH OF BARNET (G),1001850164,"86,923.00"
Home Office,Home Office,01/04/2016,UKVI - UK Visa & Immigration,Grant,LONDON BOROUGH OF BEXLEY (G),1001850165,"62,028.00"
Home Office,Home Office,01/04/2016,UKVI - UK Visa & Immigration,Grant,LONDON BOROUGH OF BROMLEY (G),1001850166,"33,441.00"
Home Office,Home Office,01/04/2016,UKVI - UK Visa & Immigration,Grant,LONDON BOROUGH OF CAMDEN (G),1001850167,"51,083.00"
Home Office,Home Office,01/04/2016,UKVI - UK Visa & Immigration,Grant,LONDON BOROUGH OF EALING 1 (G),1001850168,"54,593.00"
Home Office,Home Office,01/04/2016,UKVI - UK Visa & Immigration,Grant,LONDON BOROUGH OF ENFIELD 1 (G),1001850169,"144,338.00"
Home Office,Home Office,01/04/2016,UKVI - UK Visa & Immigration,Grant,LONDON BOROUGH OF HACKNEY (G),1001850170,"31,808.00"
Home Office,Home Office,01/04/2016,UKVI - UK Visa & Immigration,Grant,LONDON BOROUGH OF HARINGEY (G),1001850171,"84,261.00"
Home Office,Home Office,01/04/2016,UKVI - UK Visa & Immigration,Grant,LONDON BOROUGH OF HARROW 1 (G),1001850172,"68,948.00"
Home Office,Home Office,01/04/2016,UKVI - UK Visa & Immigration,Grant,LONDON BOROUGH OF HILLINGDON (G),1001850173,"288,813.00"
Home Office,Home Office,01/04/2016,UKVI - UK Visa & Immigration,Grant,LONDON BOROUGH OF HILLINGDON (G),1001850173,"98,700.00"
Home Office,Home Office,01/04/2016,UKVI - UK Visa & Immigration,Grant,LONDON BOROUGH OF HILLINGDON (G),1001850173,"273,673.00"
Home Office,Home Office,01/04/2016,UKVI - UK Visa & Immigration,Grant,LONDON BOROUGH OF HOUNSLOW (G),1001850174,"74,502.00"
Home Office,Home Office,01/04/2016,UKVI - UK Visa & Immigration,Grant,LONDON BOROUGH OF ISLINGTON (G),1001850175,"118,200.00"
Home Office,Home Office,01/04/2016,UKVI - UK Visa & Immigration,Grant,LONDON BOROUGH OF KENSINGTON & CHELSEA (G),1001850176,"76,566.00"
Home Office,Home Office,01/04/2016,UKVI - UK Visa & Immigration,Grant,LONDON BOROUGH OF LAMBETH 1 (G),1001850177,"31,629.00"
Home Office,Home Office,01/04/2016,UKVI - UK Visa & Immigration,Grant,LONDON BOROUGH OF LEWISHAM (G),1001850178,"47,922.00"
Home Office,Home Office,01/04/2016,UKVI - UK Visa & Immigration,Grant,LONDON BOROUGH OF MERTON 2 (G),1001850179,"45,011.00"
Home Office,Home Office,01/04/2016,UKVI - UK Visa & Immigration,Grant,LONDON BOROUGH OF NEWHAM (G),1001850180,"63,928.00"
Home Office,Home Office,01/04/2016,UKVI - UK Visa & Immigration,Grant,LONDON BOROUGH OF REDBRIDGE (G),1001850181,"65,001.00"
Home Office,Home Office,01/04/2016,UKVI - UK Visa & Immigration,Grant,LONDON BOROUGH OF RICHMOND UPON THAMES (G),1001850182,"59,921.00"
Home Office,Home Office,01/04/2016,UKVI - UK Visa & Immigration,Grant,LONDON BOROUGH OF SOUTHWARK 1 (G),1001850183,"29,962.00"
Home Office,Home Office,01/04/2016,UKVI - UK Visa & Immigration,Grant,LONDON BOROUGH OF SUTTON 1 (G),1001850184,"36,707.00"
Home Office,Home Office,01/04/2016,UKVI - UK Visa & Immigration,Grant,LONDON BOROUGH OF WALTHAM FOREST (G),1001850185,"87,733.00"
Home Office,Home Office,01/04/2016,UKVI - UK Visa & Immigration,Grant,LONDON BOROUGH OF WANDSWORTH (G),1001850186,"44,446.00"
Home Office,Home Office,01/04/2016,UKVI - UK Visa & Immigration,Grant,LONDON BOROUGH TOWER HAMLETS (G),1001850187,"53,611.00"
Home Office,Home Office,01/04/2016,UKVI - UK Visa & Immigration,Grant,LUTON BOROUGH COUNCIL (G),1001850188,"30,101.00"
Home Office,Home Office,01/04/2016,UKVI - UK Visa & Immigration,Grant,MANCHESTER CITY COUNCIL (G),1001850189,"58,714.00"
Home Office,Home Office,01/04/2016,UKVI - UK Visa & Immigration,Grant,MILTON KEYNES COUNCIL (G),1001850193,"80,511.00"
Home Office,Home Office,01/04/2016,UKVI - UK Visa & Immigration,Grant,NORTH AYRSHIRE COUNCIL (G),1001850197,"28,086.72"
Home Office,Home Office,01/04/2016,UKVI - UK Visa & Immigration,Grant,NORTHAMPTONSHIRE COUNTY COUNCIL (G),1001850204,"360,307.00"
Home Office,Home Office,01/04/2016,UKVI - UK Visa & Immigration,Grant,NOTTINGHAM CITY COUNCIL (G),1001850206,"32,617.00"
Home Office,Home Office,01/04/2016,UKVI - UK Visa & Immigration,Grant,NOTTINGHAMSHIRE COUNTY COUNCIL 2 (G),1001850207,"85,529.00"
Home Office,Home Office,01/04/2016,UKVI - UK Visa & Immigration,Grant,OXFORDSHIRE COUNTY COUNCIL 1 (G),1001850208,"144,743.00"
Home Office,Home Office,01/04/2016,UKVI - UK Visa & Immigration,Grant,PETERBOROUGH CITY COUNCIL (G),1001850210,"51,818.00"
Home Office,Home Office,01/04/2016,UKVI - UK Visa & Immigration,Grant,PORTSMOUTH CITY COUNCIL (G),1001850212,"65,691.00"
Home Office,Home Office,01/04/2016,UKVI - UK Visa & Immigration,Asylum Services,POST OFFICE LTD,1001850527,"73,746.00"
Home Office,Home Office,01/04/2016,UKVI - UK Visa & Immigration,Asylum Services,POST OFFICE LTD,1001850527,"35,290.80"
Home Office,Home Office,01/04/2016,UKVI - UK Visa & Immigration,"Professional, Management, Outsourcing & Admin Services",POST OFFICE LTD,1001850527,"24,540.28"
Home Office,Home Office,01/04/2016,UKVI - UK Visa & Immigration,"Professional, Management, Outsourcing & Admin Services",POST OFFICE LTD,1001850527,"27,239.53"
Home Office,Home Office,01/04/2016,UKVI - UK Visa & Immigration,"Professional, Management, Outsourcing & Admin Services",POST OFFICE LTD,1001850527,"24,232.33"
Home Office,Home Office,01/04/2016,UKVI - UK Visa & Immigration,"Professional, Management, Outsourcing & Admin Services",POST OFFICE LTD,1001850527,"141,106.83"
Home Office,Home Office,01/04/2016,UKVI - UK Visa & Immigration,Grant,ROYAL BOROUGH OF GREENWICH (G),1001850216,"29,996.00"
Home Office,Home Office,01/04/2016,UKVI - UK Visa & Immigration,Grant,ROYAL BOROUGH OF KINGSTON-UPON-THAMES (G),1001850217,"51,080.00"
Home Office,Home Office,01/04/2016,UKVI - UK Visa & Immigration,Grant,SANDWELL METROPOLITAN BOROUGH COUNCIL (G),1001850218,"45,746.00"
Home Office,Home Office,01/04/2016,UKVI - UK Visa & Immigration,Grant,SHEFFIELD CITY COUNCIL (G),1001850220,"32,935.00"
Home Office,Home Office,01/04/2016,UKVI - UK Visa & Immigration,Grant,SHEFFIELD CITY COUNCIL (G),1001850220,"446,601.25"
Home Office,Home Office,01/04/2016,UKVI - UK Visa & Immigration,Asylum Services,SODEXO MOTIVATION SOLUTIONS UK LTD,1001850558,"1,298,985.53"
Home Office,Home Office,01/04/2016,UKVI - UK Visa & Immigration,Asylum Services,SODEXO MOTIVATION SOLUTIONS UK LTD,1001850558,"180,000.00"
Home Office,Home Office,01/04/2016,UKVI - UK Visa & Immigration,Grant,SOLIHULL MBC (G),1001850224,"127,007.00"
Home Office,Home Office,01/04/2016,UKVI - UK Visa & Immigration,Grant,STAFFORDSHIRE COUNTY COUNCIL 1 (G),1001850232,"120,852.00"
Home Office,Home Office,01/04/2016,UKVI - UK Visa & Immigration,Grant,SUFFOLK COUNTY COUNCIL (G),1001850234,"73,717.00"
Home Office,Home Office,01/04/2016,UKVI - UK Visa & Immigration,Grant,SURREY COUNTY COUNCIL 1 (G),1001850235,"319,234.00"
Home Office,Home Office,01/04/2016,UKVI - UK Visa & Immigration,Grant,SURREY COUNTY COUNCIL 1 (G),1001850235,"47,550.00"
Home Office,Home Office,01/04/2016,UKVI - UK Visa & Immigration,Grant,SWINDON BOROUGH COUNCIL (G),1001850236,"40,600.00"
Home Office,Home Office,01/04/2016,UKVI - UK Visa & Immigration,Grant,THURROCK COUNCIL (G),1001850237,"75,701.00"
Home Office,Home Office,01/04/2016,UKVI - UK Visa & Immigration,Grant,WARWICKSHIRE COUNTY COUNCIL (G),1001850241,"180,324.00"
Home Office,Home Office,01/04/2016,UKVI - UK Visa & Immigration,Grant,WEST BERKSHIRE DISTRICT COUNCIL (LA) (G),1001850242,"75,748.00"
Home Office,Home Office,01/04/2016,UKVI - UK Visa & Immigration,Grant,WEST SUSSEX COUNTY COUNCIL (G),1001850243,"90,003.00"
Home Office,Home Office,01/04/2016,UKVI - UK Visa & Immigration,Grant,WESTMINSTER CITY COUNCIL (G),1001850244,"55,729.00"
Home Office,Home Office,01/04/2016,UKVI - UK Visa & Immigration,Grant,WOKINGHAM DISTRICT COUNCIL 1 (G),1001850246,"25,360.00"
Home Office,Home Office,01/04/2016,UKVI - UK Visa & Immigration,Grant,WORCESTERSHIRE COUNTY COUNCIL 1 (G),1001850248,"28,329.00"
Home Office,Home Office,01/04/2016,UKVI - UK Visa & Immigration,"Airport parking, Local council parking, Private owned car parks, Other parking",GATWICK AIRPORT LTD,1001850408,"1,727.94"
Home Office,Home Office,01/04/2016,UKVI - UK Visa & Immigration,Education & Training Services,MENTAL HEALTH FIRST AID ENGLAND,1001850477,"29,238.00"
Home Office,Home Office,04/04/2016,UKVI - UK Visa & Immigration,Legal Fees,HER MAJESTY'S COURTS & TRIBUNAL SERVICE,3000052127,"37,450.00"
Home Office,Home Office,04/04/2016,UKVI - UK Visa & Immigration,Legal Fees,HER MAJESTY'S COURTS & TRIBUNAL SERVICE,3000052127,"38,100.00"
Home Office,Home Office,05/04/2016,UKVI - UK Visa & Immigration,"Vehicles, Ships, Airplanes",INCHCAPE FLEET SOLUTIONS LTD,1001851764,"24,963.85"
Home Office,Home Office,05/04/2016,UKVI - UK Visa & Immigration,"Vehicles, Ships, Airplanes",INCHCAPE FLEET SOLUTIONS LTD,1001851764,840
Home Office,Home Office,05/04/2016,UKVI - UK Visa & Immigration,Asylum Services,MIGRANT HELPLINE LTD T/A MIGRANT HELPLINE,1001851776,"164,202.00"
Home Office,Home Office,05/04/2016,UKVI - UK Visa & Immigration,"Public Order, Security Service",G4S CARE & JUSTICE SERVICES (UK) LTD,1001851754,"288,424.60"
Home Office,Home Office,05/04/2016,UKVI - UK Visa & Immigration,"Public Order, Security Service",GEO GROUP UK LTD (THE),1001851757,"462,820.69"
Home Office,Home Office,05/04/2016,UKVI - UK Visa & Immigration,"Public Order, Security Service",GEO GROUP UK LTD (THE),1001851757,"26,319.95"
Home Office,Home Office,06/04/2016,UKVI - UK Visa & Immigration,Asylum Services,CARLSON WAGONLIT TRAVEL,1001852177,"38,218.40"
Home Office,Home Office,06/04/2016,UKVI - UK Visa & Immigration,Asylum Services,CARLSON WAGONLIT TRAVEL,1001852177,"108,593.59"
Home Office,Home Office,06/04/2016,UKVI - UK Visa & Immigration,Asylum Services,CARLSON WAGONLIT TRAVEL,1001852177,"73,005.31"
Home Office,Home Office,06/04/2016,UKVI - UK Visa & Immigration,Asylum Services,CARLSON WAGONLIT TRAVEL,1001852177,"72,677.30"
Home Office,Home Office,06/04/2016,UKVI - UK Visa & Immigration,Laboratory & Scientific Equipment,MICRO SYSTEMATION LTD,1001852230,"73,586.40"
Home Office,Home Office,06/04/2016,UKVI - UK Visa & Immigration,"Professional, Management, Outsourcing & Admin Services",HINDUJA GLOBAL SOLUTIONS UK LTD,1001852209,"209,480.60"
Home Office,Home Office,06/04/2016,UKVI - UK Visa & Immigration,"Professional, Management, Outsourcing & Admin Services",HINDUJA GLOBAL SOLUTIONS UK LTD,1001852209,"35,028.35"
Home Office,Home Office,06/04/2016,UKVI - UK Visa & Immigration,"Public Order, Security Service",G4S CARE & JUSTICE SERVICES (UK) LTD,1001852200,"91,081.34"
Home Office,Home Office,06/04/2016,UKVI - UK Visa & Immigration,"Public Order, Security Service",G4S CARE & JUSTICE SERVICES (UK) LTD,1001852200,"70,243.32"
Home Office,Home Office,06/04/2016,UKVI - UK Visa & Immigration,"Public Order, Security Service",G4S CARE & JUSTICE SERVICES (UK) LTD,1001852200,"447,086.14"
Home Office,Home Office,06/04/2016,UKVI - UK Visa & Immigration,"Public Order, Security Service",MITIE CARE & CUSTODY LTD,1001852234,"1,999,341.60"
Home Office,Home Office,06/04/2016,UKVI - UK Visa & Immigration,"Public Order, Security Service",MITIE CARE & CUSTODY LTD,1001852234,"562,864.20"
Home Office,Home Office,06/04/2016,UKVI - UK Visa & Immigration,"Public Order, Security Service",MITIE CARE & CUSTODY LTD,1001852234,"45,978.20"
Home Office,Home Office,06/04/2016,UKVI - UK Visa & Immigration,"Public Order, Security Service",MITIE CARE & CUSTODY LTD,1001852234,"59,875.50"
Home Office,Home Office,06/04/2016,UKVI - UK Visa & Immigration,"Public Order, Security Service",MITIE CARE & CUSTODY LTD,1001852234,"171,629.08"
Home Office,Home Office,07/04/2016,UKVI - UK Visa & Immigration,"IT, Broadcasting & Telecomms, Components & Run Costs",FCO SERVICES,3000052142,"27,764.06"
Home Office,Home Office,07/04/2016,UKVI - UK Visa & Immigration,"IT, Broadcasting & Telecomms, Components & Run Costs",FCO SERVICES,3000052142,"15,462.18"
Home Office,Home Office,07/04/2016,UKVI - UK Visa & Immigration,"IT, Broadcasting & Telecomms, Components & Run Costs",FCO SERVICES,3000052142,"20,273.22"
Home Office,Home Office,07/04/2016,UKVI - UK Visa & Immigration,"IT, Broadcasting & Telecomms, Components & Run Costs",FCO SERVICES,3000052142,"27,258.74"
Home Office,Home Office,07/04/2016,UKVI - UK Visa & Immigration,Legal Fees,GOVERNMENT LEGAL DEPARTMENT,3000052144,"212,378.55"
Home Office,Home Office,07/04/2016,UKVI - UK Visa & Immigration,Legal Fees,GOVERNMENT LEGAL DEPARTMENT,3000052144,"108,573.50"
Home Office,Home Office,07/04/2016,UKVI - UK Visa & Immigration,"Professional, Management, Outsourcing & Admin Services",NATIONAL SAVINGS AND INVESTMENTS,3000052145,"238,700.40"
Home Office,Home Office,07/04/2016,UKVI - UK Visa & Immigration,"Public Order, Security Service",MITIE CARE & CUSTODY LTD,1001852701,"54,153.36"
Home Office,Home Office,08/04/2016,UKVI - UK Visa & Immigration,Asylum Services,CARLSON WAGONLIT TRAVEL,1001853250,"174,596.58"
Home Office,Home Office,08/04/2016,UKVI - UK Visa & Immigration,"Transport, Storage & Mail Services",DX NETWORK SERVICES LTD,1001853263,"18,296.82"
Home Office,Home Office,08/04/2016,UKVI - UK Visa & Immigration,"Transport, Storage & Mail Services",DX NETWORK SERVICES LTD,1001853263,"19,137.91"
Home Office,Home Office,08/04/2016,UKVI - UK Visa & Immigration,"Transport, Storage & Mail Services",DX NETWORK SERVICES LTD,1001853263,"108,862.43"
Home Office,Home Office,08/04/2016,UKVI - UK Visa & Immigration,"Transport, Storage & Mail Services",DX NETWORK SERVICES LTD,1001853263,"60,009.98"
Home Office,Home Office,08/04/2016,UKVI - UK Visa & Immigration,Legal Fees,SCOTLAND OFFICE,3000052151,"66,613.56"
Home Office,Home Office,08/04/2016,UKVI - UK Visa & Immigration,Asylum Services,SODEXO MOTIVATION SOLUTIONS UK LTD,1001853335,"197,826.73"
Home Office,Home Office,08/04/2016,UKVI - UK Visa & Immigration,Asylum Services,SODEXO MOTIVATION SOLUTIONS UK LTD,1001853335,"1,159,532.37"
Home Office,Home Office,08/04/2016,UKVI - UK Visa & Immigration,Asylum Services,SODEXO MOTIVATION SOLUTIONS UK LTD,1001853335,"180,000.00"
Home Office,Home Office,11/04/2016,UKVI - UK Visa & Immigration,"Professional, Management, Outsourcing & Admin Services",MANPOWER UK LIMITED,1001853822,"179,994.00"
Home Office,Home Office,12/04/2016,UKVI - UK Visa & Immigration,Grant,BIRMINGHAM CITY COUNCIL (G),1001854165,"27,003.00"
Home Office,Home Office,12/04/2016,UKVI - UK Visa & Immigration,Legal Fees,GOVERNMENT LEGAL DEPARTMENT,3000052154,"1,033,235.61"
Home Office,Home Office,12/04/2016,UKVI - UK Visa & Immigration,Legal Fees,GOVERNMENT LEGAL DEPARTMENT,3000052154,"2,162,574.39"
Home Office,Home Office,12/04/2016,UKVI - UK Visa & Immigration,Legal Fees,GOVERNMENT LEGAL DEPARTMENT,3000052154,"14,607.82"
Home Office,Home Office,12/04/2016,UKVI - UK Visa & Immigration,Legal Fees,GOVERNMENT LEGAL DEPARTMENT,3000052154,"20,843.57"
Home Office,Home Office,12/04/2016,UKVI - UK Visa & Immigration,Legal Fees,GOVERNMENT LEGAL DEPARTMENT,3000052154,"39,187.35"
Home Office,Home Office,12/04/2016,UKVI - UK Visa & Immigration,Legal Fees,GOVERNMENT LEGAL DEPARTMENT,3000052154,"86,919.94"
Home Office,Home Office,12/04/2016,UKVI - UK Visa & Immigration,Legal Fees,GOVERNMENT LEGAL DEPARTMENT,3000052154,"22,512.59"
Home Office,Home Office,12/04/2016,UKVI - UK Visa & Immigration,Legal Fees,GOVERNMENT LEGAL DEPARTMENT,3000052154,"33,126.03"
Home Office,Home Office,12/04/2016,UKVI - UK Visa & Immigration,Legal Fees,GOVERNMENT LEGAL DEPARTMENT,3000052154,"264,886.44"
Home Office,Home Office,12/04/2016,UKVI - UK Visa & Immigration,Legal Fees,GOVERNMENT LEGAL DEPARTMENT,3000052154,"422,779.37"
Home Office,Home Office,12/04/2016,UKVI - UK Visa & Immigration,Legal Fees,GOVERNMENT LEGAL DEPARTMENT,3000052154,"101,980.55"
Home Office,Home Office,12/04/2016,UKVI - UK Visa & Immigration,Legal Fees,GOVERNMENT LEGAL DEPARTMENT,3000052154,"90,444.92"
Home Office,Home Office,12/04/2016,UKVI - UK Visa & Immigration,Legal Fees,GOVERNMENT LEGAL DEPARTMENT,3000052154,"16,493.55"
Home Office,Home Office,12/04/2016,UKVI - UK Visa & Immigration,Legal Fees,GOVERNMENT LEGAL DEPARTMENT,3000052154,"70,398.27"
Home Office,Home Office,12/04/2016,UKVI - UK Visa & Immigration,Legal Fees,GOVERNMENT LEGAL DEPARTMENT,3000052154,"10,058.09"
Home Office,Home Office,12/04/2016,UKVI - UK Visa & Immigration,Legal Fees,GOVERNMENT LEGAL DEPARTMENT,3000052154,"23,178.40"
Home Office,Home Office,12/04/2016,UKVI - UK Visa & Immigration,Legal Fees,GOVERNMENT LEGAL DEPARTMENT,3000052155,"218,892.36"
Home Office,Home Office,12/04/2016,UKVI - UK Visa & Immigration,Office Equipment & Machines,WILLIAMS LEA,1001854371,"38,990.16"
Home Office,Home Office,13/04/2016,UKVI - UK Visa & Immigration,"Vehicles, Ships, Airplanes",INCHCAPE FLEET SOLUTIONS LTD,1001854902,786
Home Office,Home Office,13/04/2016,UKVI - UK Visa & Immigration,"Vehicles, Ships, Airplanes",INCHCAPE FLEET SOLUTIONS LTD,1001854902,954
Home Office,Home Office,13/04/2016,UKVI - UK Visa & Immigration,"Vehicles, Ships, Airplanes",INCHCAPE FLEET SOLUTIONS LTD,1001854902,"82,800.00"
Home Office,Home Office,13/04/2016,UKVI - UK Visa & Immigration,HOPG Contracted Out Services,CAPITA BUSINESS SERVICES LTD,6200059704,"125,783.86"
Home Office,Home Office,13/04/2016,UKVI - UK Visa & Immigration,HOPG Contracted Out Services,CAPITA BUSINESS SERVICES LTD,6200059704,"83,884.04"
Home Office,Home Office,13/04/2016,UKVI - UK Visa & Immigration,HOPG Contracted Out Services,CAPITA BUSINESS SERVICES LTD,6200059704,"-125,783.86"
Home Office,Home Office,13/04/2016,UKVI - UK Visa & Immigration,HOPG Contracted Out Services,CAPITA BUSINESS SERVICES LTD,6200059704,"-83,884.04"
Home Office,Home Office,13/04/2016,UKVI - UK Visa & Immigration,Citizen Ceremonies,EALING REGISTER OFFICE,1001854868,"27,040.00"
Home Office,Home Office,13/04/2016,UKVI - UK Visa & Immigration,Asylum Services,G4S CARE & JUSTICE SERVICES (UK) LTD,1001854887,"27,080.21"
Home Office,Home Office,13/04/2016,UKVI - UK Visa & Immigration,Asylum Services,G4S CARE & JUSTICE SERVICES (UK) LTD,1001854887,"97,488.77"
Home Office,Home Office,13/04/2016,UKVI - UK Visa & Immigration,Asylum Services,G4S CARE & JUSTICE SERVICES (UK) LTD,1001854887,"1,833,717.78"
Home Office,Home Office,13/04/2016,UKVI - UK Visa & Immigration,Asylum Services,G4S CARE & JUSTICE SERVICES (UK) LTD,1001854887,"19,541.34"
Home Office,Home Office,13/04/2016,UKVI - UK Visa & Immigration,Asylum Services,G4S CARE & JUSTICE SERVICES (UK) LTD,1001854887,"318,948.67"
Home Office,Home Office,13/04/2016,UKVI - UK Visa & Immigration,Asylum Services,G4S CARE & JUSTICE SERVICES (UK) LTD,1001854887,"219,106.58"
Home Office,Home Office,13/04/2016,UKVI - UK Visa & Immigration,Asylum Services,G4S CARE & JUSTICE SERVICES (UK) LTD,1001854887,"31,698.75"
Home Office,Home Office,13/04/2016,UKVI - UK Visa & Immigration,Asylum Services,G4S CARE & JUSTICE SERVICES (UK) LTD,1001854887,"114,115.50"
Home Office,Home Office,13/04/2016,UKVI - UK Visa & Immigration,Asylum Services,G4S CARE & JUSTICE SERVICES (UK) LTD,1001854887,"1,269.60"
Home Office,Home Office,13/04/2016,UKVI - UK Visa & Immigration,Asylum Services,G4S CARE & JUSTICE SERVICES (UK) LTD,1001854887,"1,865,743.16"
Home Office,Home Office,13/04/2016,UKVI - UK Visa & Immigration,Asylum Services,G4S CARE & JUSTICE SERVICES (UK) LTD,1001854887,"24,147.17"
Home Office,Home Office,13/04/2016,UKVI - UK Visa & Immigration,Asylum Services,G4S CARE & JUSTICE SERVICES (UK) LTD,1001854887,"187,795.37"
Home Office,Home Office,13/04/2016,UKVI - UK Visa & Immigration,Asylum Services,G4S CARE & JUSTICE SERVICES (UK) LTD,1001854887,"211,144.18"
Home Office,Home Office,13/04/2016,UKVI - UK Visa & Immigration,Citizen Ceremonies,HERTFORDSHIRE COUNTY COUNCIL,1001854900,"26,400.00"
Home Office,Home Office,13/04/2016,UKVI - UK Visa & Immigration,"Professional, Management, Outsourcing & Admin Services",POST OFFICE LTD,1001854979,"23,379.57"
Home Office,Home Office,13/04/2016,UKVI - UK Visa & Immigration,"Professional, Management, Outsourcing & Admin Services",POST OFFICE LTD,1001854979,"25,839.87"
Home Office,Home Office,13/04/2016,UKVI - UK Visa & Immigration,"Professional, Management, Outsourcing & Admin Services",POST OFFICE LTD,1001854979,"23,055.12"
Home Office,Home Office,13/04/2016,UKVI - UK Visa & Immigration,"Professional, Management, Outsourcing & Admin Services",POST OFFICE LTD,1001854979,"133,601.52"
Home Office,Home Office,13/04/2016,UKVI - UK Visa & Immigration,"Public Order, Security Service",TASCOR SERVICES LIMITED,1001855027,"30,921.28"
Home Office,Home Office,13/04/2016,UKVI - UK Visa & Immigration,"Public Order, Security Service",TASCOR SERVICES LIMITED,1001855027,"6,359.17"
Home Office,Home Office,14/04/2016,UKVI - UK Visa & Immigration,"Professional, Management, Outsourcing & Admin Services",DRIVER AND VEHICLE LICENSING AGENCY (DVLA),1001855406,"53,535.56"
Home Office,Home Office,14/04/2016,UKVI - UK Visa & Immigration,"Professional, Management, Outsourcing & Admin Services",DRIVER AND VEHICLE LICENSING AGENCY (DVLA),1001855406,"66,250.20"
Home Office,Home Office,14/04/2016,UKVI - UK Visa & Immigration,"Professional, Management, Outsourcing & Admin Services",DRIVER AND VEHICLE LICENSING AGENCY (DVLA),1001855406,"56,731.16"
Home Office,Home Office,14/04/2016,UKVI - UK Visa & Immigration,Legal Fees,GOVERNMENT LEGAL DEPARTMENT,3000052167,"133,830.80"
Home Office,Home Office,14/04/2016,UKVI - UK Visa & Immigration,Healthcare Services,HEALIX INTERNATIONAL LTD,1001855421,"32,194.47"
Home Office,Home Office,15/04/2016,UKVI - UK Visa & Immigration,Grant,MANCHESTER CITY COUNCIL (G),1001855701,"79,980.00"
Home Office,Home Office,15/04/2016,UKVI - UK Visa & Immigration,Asylum Services,SODEXO MOTIVATION SOLUTIONS UK LTD,1001855951,"34,381.64"
Home Office,Home Office,15/04/2016,UKVI - UK Visa & Immigration,Asylum Services,SODEXO MOTIVATION SOLUTIONS UK LTD,1001855951,"1,310,000.00"
Home Office,Home Office,18/04/2016,UKVI - UK Visa & Immigration,Asylum Services,CARLSON WAGONLIT TRAVEL,1001856469,"74,194.43"
Home Office,Home Office,18/04/2016,UKVI - UK Visa & Immigration,Asylum Services,CARLSON WAGONLIT TRAVEL,1001856469,"95,347.89"
Home Office,Home Office,18/04/2016,UKVI - UK Visa & Immigration,Asylum Services,CARLSON WAGONLIT TRAVEL,1001856469,"197,967.60"
Home Office,Home Office,18/04/2016,UKVI - UK Visa & Immigration,Asylum Services,CARLSON WAGONLIT TRAVEL,1001856469,"170,296.75"
Home Office,Home Office,18/04/2016,UKVI - UK Visa & Immigration,Asylum Services,CARLSON WAGONLIT TRAVEL,1001856469,"58,383.93"
Home Office,Home Office,18/04/2016,UKVI - UK Visa & Immigration,"Professional, Management, Outsourcing & Admin Services",POLICE & CRIME COMMISSIONER FOR LANCASHIRE (THE),1001856519,"27,172.77"
Home Office,Home Office,18/04/2016,UKVI - UK Visa & Immigration,"Professional, Management, Outsourcing & Admin Services",DRIVER AND VEHICLE LICENSING AGENCY (DVLA),1001856478,"78,912.92"
Home Office,Home Office,18/04/2016,UKVI - UK Visa & Immigration,"Professional, Management, Outsourcing & Admin Services",DRIVER AND VEHICLE LICENSING AGENCY (DVLA),1001856478,"13,154.72"
Home Office,Home Office,18/04/2016,UKVI - UK Visa & Immigration,Legal Fees,GOVERNMENT LEGAL DEPARTMENT,3000052183,"195,063.97"
Home Office,Home Office,18/04/2016,UKVI - UK Visa & Immigration,Grant,NEWCASTLE CITY COUNCIL (G),1001856317,"38,120.40"
Home Office,Home Office,18/04/2016,UKVI - UK Visa & Immigration,Grant,NEWCASTLE CITY COUNCIL (G),1001856317,"29,860.00"
Home Office,Home Office,18/04/2016,UKVI - UK Visa & Immigration,Asylum Services,SERCO LTD,1001856532,"21,078.00"
Home Office,Home Office,18/04/2016,UKVI - UK Visa & Immigration,Asylum Services,SERCO LTD,1001856532,"2,269,590.28"
Home Office,Home Office,18/04/2016,UKVI - UK Visa & Immigration,Asylum Services,SERCO LTD,1001856532,"65,426.54"
Home Office,Home Office,18/04/2016,UKVI - UK Visa & Immigration,Asylum Services,SERCO LTD,1001856532,"594,570.82"
Home Office,Home Office,18/04/2016,UKVI - UK Visa & Immigration,Asylum Services,SERCO LTD,1001856532,"188,428.90"
Home Office,Home Office,18/04/2016,UKVI - UK Visa & Immigration,Asylum Services,SERCO LTD,1001856532,"12,979.07"
Home Office,Home Office,18/04/2016,UKVI - UK Visa & Immigration,Asylum Services,SERCO LTD,1001856532,"1,257,572.86"
Home Office,Home Office,18/04/2016,UKVI - UK Visa & Immigration,Asylum Services,SERCO LTD,1001856532,"10,167.77"
Home Office,Home Office,18/04/2016,UKVI - UK Visa & Immigration,Asylum Services,SERCO LTD,1001856532,"297,046.80"
Home Office,Home Office,18/04/2016,UKVI - UK Visa & Immigration,Asylum Services,SERCO LTD,1001856532,"167,271.25"
Home Office,Home Office,18/04/2016,UKVI - UK Visa & Immigration,"IT, Tele ApplicationConsultancy&Development",SITEL UK LTD,1001856534,"126,915.89"
Home Office,Home Office,18/04/2016,UKVI - UK Visa & Immigration,"Transport, Storage & Mail Services",WILLIAMS LEA,1001856549,"65,088.00"
Home Office,Home Office,19/04/2016,UKVI - UK Visa & Immigration,HOPG Contracted Out Services,CAPITA BUSINESS SERVICES LTD,1001856917,"107,626.18"
Home Office,Home Office,20/04/2016,UKVI - UK Visa & Immigration,Asylum Services,CARLSON WAGONLIT TRAVEL,1001857439,"64,041.60"
Home Office,Home Office,20/04/2016,UKVI - UK Visa & Immigration,Asylum Services,CARLSON WAGONLIT TRAVEL,1001857439,"143,496.32"
Home Office,Home Office,20/04/2016,UKVI - UK Visa & Immigration,HOPG Contracted Out Services,CAPITA BUSINESS SERVICES LTD,6200059711,"238,799.57"
Home Office,Home Office,20/04/2016,UKVI - UK Visa & Immigration,HOPG Contracted Out Services,CAPITA BUSINESS SERVICES LTD,6200059711,"-236,162.78"
Home Office,Home Office,20/04/2016,UKVI - UK Visa & Immigration,HOPG Contracted Out Services,CAPITA BUSINESS SERVICES LTD,6200059711,"-19,768.03"
Home Office,Home Office,20/04/2016,UKVI - UK Visa & Immigration,Legal Fees,GOVERNMENT LEGAL DEPARTMENT,3000052197,"177,471.70"
Home Office,Home Office,20/04/2016,UKVI - UK Visa & Immigration,"Professional, Management, Outsourcing & Admin Services",TELEPERFORMANCE LTD,6200059715,"-141,821.53"
Home Office,Home Office,20/04/2016,UKVI - UK Visa & Immigration,"Professional, Management, Outsourcing & Admin Services",TELEPERFORMANCE LTD,6200059715,"-743,042.55"
Home Office,Home Office,20/04/2016,UKVI - UK Visa & Immigration,"Professional, Management, Outsourcing & Admin Services",TELEPERFORMANCE LTD,6200059715,"47,733.47"
Home Office,Home Office,21/04/2016,UKVI - UK Visa & Immigration,Asylum Services,CARLSON WAGONLIT TRAVEL,1001857868,"79,942.63"
Home Office,Home Office,21/04/2016,UKVI - UK Visa & Immigration,"Transport, Storage & Mail Services",DRIVER AND VEHICLE LICENSING AGENCY (DVLA),1001857877,"1,400,534.78"
Home Office,Home Office,21/04/2016,UKVI - UK Visa & Immigration,"IT, Broadcasting & Telecomms, Components & Run Costs",MASTEK (UK) LTD,1001857906,"473,588.10"
Home Office,Home Office,21/04/2016,UKVI - UK Visa & Immigration,Grant,SCOTTISH REFUGEE COUNCIL (G),1001857778,"61,421.54"
Home Office,Home Office,21/04/2016,UKVI - UK Visa & Immigration,"Professional, Management, Outsourcing & Admin Services",TELEPERFORMANCE LTD,1001857932,"-506,546.16"
Home Office,Home Office,21/04/2016,UKVI - UK Visa & Immigration,"Professional, Management, Outsourcing & Admin Services",TELEPERFORMANCE LTD,1001857932,"3,341,706.21"
Home Office,Home Office,21/04/2016,UKVI - UK Visa & Immigration,"Professional, Management, Outsourcing & Admin Services",TELEPERFORMANCE LTD,1001857932,"591,518.32"
Home Office,Home Office,21/04/2016,UKVI - UK Visa & Immigration,"Professional, Management, Outsourcing & Admin Services",VF WORLDWIDE HOLDINGS LTD,7000011212,"2,965,944.56"
Home Office,Home Office,21/04/2016,UKVI - UK Visa & Immigration,"Professional, Management, Outsourcing & Admin Services",VF WORLDWIDE HOLDINGS LTD,7000011212,"100,587.45"
Home Office,Home Office,22/04/2016,UKVI - UK Visa & Immigration,Asylum Services,CARLSON WAGONLIT TRAVEL,1001858271,"74,618.03"
Home Office,Home Office,22/04/2016,UKVI - UK Visa & Immigration,"Professional, Management, Outsourcing & Admin Services",SCOTTISH POLICE AUTHORITY,1001858345,"4,316.46"
Home Office,Home Office,22/04/2016,UKVI - UK Visa & Immigration,"Professional, Management, Outsourcing & Admin Services",SCOTTISH POLICE AUTHORITY,1001858345,"32,426.33"
Home Office,Home Office,22/04/2016,UKVI - UK Visa & Immigration,Asylum Services,CLEARSPRINGS READY HOMES LTD,1001858275,"247,331.98"
Home Office,Home Office,22/04/2016,UKVI - UK Visa & Immigration,Asylum Services,CLEARSPRINGS READY HOMES LTD,1001858274,"27,000.00"
Home Office,Home Office,22/04/2016,UKVI - UK Visa & Immigration,Asylum Services,CLEARSPRINGS READY HOMES LTD,1001858274,"896,581.09"
Home Office,Home Office,22/04/2016,UKVI - UK Visa & Immigration,Asylum Services,CLEARSPRINGS READY HOMES LTD,1001858274,"234,396.29"
Home Office,Home Office,22/04/2016,UKVI - UK Visa & Immigration,Asylum Services,CLEARSPRINGS READY HOMES LTD,1001858274,"463,453.80"
Home Office,Home Office,22/04/2016,UKVI - UK Visa & Immigration,Asylum Services,CLEARSPRINGS READY HOMES LTD,1001858274,"78,665.32"
Home Office,Home Office,22/04/2016,UKVI - UK Visa & Immigration,"IT, Broadcasting & Telecomms, Components & Run Costs",FCO SERVICES,3000052210,"51,240.24"
Home Office,Home Office,22/04/2016,UKVI - UK Visa & Immigration,Legal Fees,GOVERNMENT LEGAL DEPARTMENT,3000052212,"307,457.69"
Home Office,Home Office,22/04/2016,UKVI - UK Visa & Immigration,Asylum Services,SODEXO MOTIVATION SOLUTIONS UK LTD,1001858351,"1,341,194.91"
Home Office,Home Office,22/04/2016,UKVI - UK Visa & Immigration,Asylum Services,SODEXO MOTIVATION SOLUTIONS UK LTD,1001858351,"76,867.96"
Home Office,Home Office,22/04/2016,UKVI - UK Visa & Immigration,Interpreters,VERIFIED AB,7000011219,"32,302.00"
Home Office,Home Office,22/04/2016,UKVI - UK Visa & Immigration,"Public Order, Security Service",TASCOR SERVICES LIMITED,1001858362,"180,984.11"
Home Office,Home Office,22/04/2016,UKVI - UK Visa & Immigration,"Public Order, Security Service",TASCOR SERVICES LIMITED,1001858362,"146,510.95"
Home Office,Home Office,22/04/2016,UKVI - UK Visa & Immigration,"Public Order, Security Service",TASCOR SERVICES LIMITED,1001858362,"247,057.68"
Home Office,Home Office,22/04/2016,UKVI - UK Visa & Immigration,"Public Order, Security Service",TASCOR SERVICES LIMITED,1001858362,"117,964.22"
Home Office,Home Office,22/04/2016,UKVI - UK Visa & Immigration,"Public Order, Security Service",TASCOR SERVICES LIMITED,1001858362,"774,057.53"
Home Office,Home Office,22/04/2016,UKVI - UK Visa & Immigration,"Public Order, Security Service",TASCOR SERVICES LIMITED,1001858362,"90,587.15"
Home Office,Home Office,22/04/2016,UKVI - UK Visa & Immigration,"Public Order, Security Service",TASCOR SERVICES LIMITED,1001858362,"137,134.43"
Home Office,Home Office,22/04/2016,UKVI - UK Visa & Immigration,"Public Order, Security Service",TASCOR SERVICES LIMITED,1001858362,"76,788.28"
Home Office,Home Office,22/04/2016,UKVI - UK Visa & Immigration,"Public Order, Security Service",TASCOR SERVICES LIMITED,1001858362,"43,695.43"
Home Office,Home Office,25/04/2016,UKVI - UK Visa & Immigration,Asylum Services,CLEARSPRINGS READY HOMES LTD,1001858869,"8,000.00"
Home Office,Home Office,25/04/2016,UKVI - UK Visa & Immigration,Asylum Services,CLEARSPRINGS READY HOMES LTD,1001858869,"724,621.10"
Home Office,Home Office,25/04/2016,UKVI - UK Visa & Immigration,Asylum Services,CLEARSPRINGS READY HOMES LTD,1001858869,"185,459.44"
Home Office,Home Office,25/04/2016,UKVI - UK Visa & Immigration,"Public Order, Security Service",TASCOR SERVICES LIMITED,1001858959,"82,158.98"
Home Office,Home Office,26/04/2016,UKVI - UK Visa & Immigration,"Public Order, Security Service",MINISTRY OF JUSTICE,3000052220,"2,755,200.00"
Home Office,Home Office,26/04/2016,UKVI - UK Visa & Immigration,"Public Order, Security Service",MINISTRY OF JUSTICE,3000052220,"1,547,770.00"
Home Office,Home Office,26/04/2016,UKVI - UK Visa & Immigration,"Public Order, Security Service",MINISTRY OF JUSTICE,3000052220,"1,496,306.00"
Home Office,Home Office,27/04/2016,UKVI - UK Visa & Immigration,HOPG Contracted Out Services,CAPITA BUSINESS SERVICES LTD,6200059720,"-18,296.70"
Home Office,SIA - Security Industry Authority,14/09/2015,SIA - Security Industry Authority,Accommodation,Olswang ,COLS01,"219,373.51"
Home Office,SIA - Security Industry Authority,14/09/2015,SIA - Security Industry Authority,Accommodation,CAMDEN BUSINESS RATE SECTION,CCAM03,"302,445.00"
Home Office,SIA - Security Industry Authority,05/04/2016,SIA - Security Industry Authority,Licensing ,Discloure Scotland,CDIS01,"231,920.00"
Home Office,SIA - Security Industry Authority,05/04/2016,SIA - Security Industry Authority,Licensing ,Post Office ,CPOS03,"29,651.40"
Home Office,SIA - Security Industry Authority,06/04/2016,SIA - Security Industry Authority,Licensing ,BT Global Services ,CBTG01,"10,599.60"
Home Office,SIA - Security Industry Authority,18/04/2016,SIA - Security Industry Authority,"Professional, Management, Outsourcing & Admin Services",Pa Consulting ,CPAC02,"26,580.00"
Home Office,SIA - Security Industry Authority,22/04/2016,SIA - Security Industry Authority,Licensing ,Discloure Scotland,CDIS01,"237,588.00"
,,,,,,, -   
,,,,,,, -   
,,,,,,, -   
,,,,,,, -   
,,,,,,, -   
,,,,,,, -   
,,,,,,, -   
,,,,,,, -   
,,,,,,, -   
,,,,,,, -   
,,,,,,, -   
,,,,,,, -   
,,,,,,, -   
,,,,,,, -   
,,,,,,, -   
,,,,,,, -   
,,,,,,, -   
,,,,,,, -   
,,,,,,, -   
,,,,,,, -   
,,,,,,, -   
,,,,,,, -   
,,,,,,, -   
,,,,,,, -   
,,,,,,, -   
,,,,,,, -   
,,,,,,, -   
,,,,,,, -   
,,,,,,, -   
,,,,,,, -   
,,,,,,, -   
,,,,,,, -   
,,,,,,, -   
,,,,,,, -   
,,,,,,, -   
,,,,,,, -   
,,,,,,, -   
,,,,,,, -   
,,,,,,, -   
,,,,,,, -   
,,,,,,, -   
,,,,,,, -   
,,,,,,, -   
,,,,,,, -   
,,,,,,, -   
,,,,,,, -   
,,,,,,, -   
,,,,,,, -   
,,,,,,, -   
,,,,,,, -   
,,,,,,, -   
,,,,,,, -   
,,,,,,, -   
,,,,,,, -   
,,,,,,, -   
,,,,,,, -   
,,,,,,, -   
,,,,,,, -   
,,,,,,, -   
,,,,,,, -   
,,,,,,, -   
,,,,,,, -   
,,,,,,, -   
,,,,,,, -   
,,,,,,, -   
,,,,,,, -   
,,,,,,, -   
,,,,,,, -   
,,,,,,, -   
,,,,,,, -   
,,,,,,, -   
,,,,,,, -   
,,,,,,, -   
,,,,,,, -   
,,,,,,, -   
,,,,,,, -   
,,,,,,, -   
,,,,,,, -   
,,,,,,, -   
,,,,,,, -   
,,,,,,, -   
,,,,,,, -   
,,,,,,, -   
,,,,,,, -   
,,,,,,, -   
,,,,,,, -   
,,,,,,, -   
,,,,,,, -   
,,,,,,, -   
,,,,,,, -   
,,,,,,, -   
,,,,,,, -   
,,,,,,, -   
,,,,,,, -   
,,,,,,, -   
,,,,,,, -   
,,,,,,, -   
,,,,,,, -   
,,,,,,, -   
,,,,,,, -   
,,,,,,, -   
,,,,,,, -   
,,,,,,, -   
,,,,,,, -   
,,,,,,, -   
,,,,,,, -   
,,,,,,, -   
,,,,,,, -   
,,,,,,, -   
,,,,,,, -   
,,,,,,, -   
,,,,,,, -   
,,,,,,, -   
,,,,,,, -   
,,,,,,, -   
,,,,,,, -   
,,,,,,, -   
,,,,,,, -   
,,,,,,, -   
,,,,,,, -   
,,,,,,, -   
,,,,,,, -   
,,,,,,, -   
,,,,,,, -   
,,,,,,, -   
,,,,,,, -   
,,,,,,, -   
,,,,,,, -   
,,,,,,, -   
,,,,,,, -   
,,,,,,, -   
,,,,,,, -   
,,,,,,, -   
,,,,,,, -   
,,,,,,, -   
,,,,,,, -   
,,,,,,, -   
,,,,,,, -   
,,,,,,, -   
,,,,,,, -   
,,,,,,, -   
,,,,,,, -   
,,,,,,, -   
,,,,,,, -   
,,,,,,, -   
,,,,,,, -   
,,,,,,, -   
,,,,,,, -   
,,,,,,, -   
,,,,,,, -   
,,,,,,, -   
,,,,,,, -   
,,,,,,, -   
,,,,,,, -   
,,,,,,, -   
,,,,,,, -   
,,,,,,, -   
,,,,,,, -   
,,,,,,, -   
,,,,,,, -   
,,,,,,, -   
,,,,,,, -   
,,,,,,, -   
,,,,,,, -   
,,,,,,, -   
,,,,,,, -   
,,,,,,, -   
,,,,,,, -   
,,,,,,, -   
,,,,,,, -   
,,,,,,, -   
,,,,,,, -   
,,,,,,, -   
,,,,,,, -   
,,,,,,, -   
,,,,,,, -   
,,,,,,, -   
,,,,,,, -   
,,,,,,, -   
,,,,,,, -   
,,,,,,, -   
,,,,,,, -   
,,,,,,, -   
,,,,,,, -   
,,,,,,, -   
,,,,,,, -   
,,,,,,, -   
,,,,,,, -   
,,,,,,, -   
,,,,,,, -   
,,,,,,, -   
,,,,,,, -   
,,,,,,, -   
,,,,,,, -   
,,,,,,, -   
,,,,,,, -   
,,,,,,, -   
,,,,,,, -   
,,,,,,, -   
,,,,,,, -   
,,,,,,, -   
,,,,,,, -   
,,,,,,, -   
,,,,,,, -   
,,,,,,, -   
,,,,,,, -   
,,,,,,, -   
,,,,,,, -   
,,,,,,, -   
,,,,,,, -   
,,,,,,, -   
,,,,,,, -   
,,,,,,, -   
,,,,,,, -   
,,,,,,, -   
,,,,,,, -   
,,,,,,, -   
,,,,,,, -   
,,,,,,, -   
,,,,,,, -   
,,,,,,, -   
,,,,,,, -   
,,,,,,, -   
,,,,,,, -   
,,,,,,, -   
,,,,,,, -   
,,,,,,, -   
,,,,,,, -   
,,,,,,, -   
,,,,,,, -   
,,,,,,, -   
,,,,,,, -   
,,,,,,, -   
,,,,,,, -   
,,,,,,, -   
,,,,,,, -   
,,,,,,, -   
,,,,,,, -   
,,,,,,, -   
,,,,,,, -   
,,,,,,, -   
,,,,,,, -   
,,,,,,, -   
,,,,,,, -   
,,,,,,, -   
,,,,,,, -   
,,,,,,, -   
,,,,,,, -   
,,,,,,, -   
,,,,,,, -   
,,,,,,, -   
,,,,,,, -   
,,,,,,, -   
,,,,,,, -   
,,,,,,, -   
,,,,,,, -   
,,,,,,, -   
,,,,,,, -   
,,,,,,, -   
,,,,,,, -   
,,,,,,, -   
,,,,,,, -   
,,,,,,, -   
,,,,,,, -   
,,,,,,, -   
,,,,,,, -   
,,,,,,, -   
,,,,,,, -   
,,,,,,, -   
,,,,,,, -   
,,,,,,, -   
,,,,,,, -   
,,,,,,, -   
,,,,,,, -   
,,,,,,, -   
,,,,,,, -   
,,,,,,, -   
,,,,,,, -   
,,,,,,, -   
,,,,,,, -   
,,,,,,, -   
,,,,,,, -   
,,,,,,, -   
,,,,,,, -   
,,,,,,, -   
,,,,,,, -   
,,,,,,, -   
,,,,,,, -   
,,,,,,, -   
,,,,,,, -   
,,,,,,, -   
,,,,,,, -   
,,,,,,, -   
,,,,,,, -   
,,,,,,, -   
,,,,,,, -   
,,,,,,, -   
,,,,,,, -   
,,,,,,, -   
,,,,,,, -   
,,,,,,, -   
,,,,,,, -   
,,,,,,, -   
,,,,,,, -   
,,,,,,, -   
,,,,,,, -   
,,,,,,, -   
,,,,,,, -   
,,,,,,, -   
,,,,,,, -   
,,,,,,, -   
,,,,,,, -   
,,,,,,, -   
,,,,,,, -   
,,,,,,, -   
,,,,,,, -   
,,,,,,, -   
,,,,,,, -   
,,,,,,, -   
,,,,,,, -   
,,,,,,, -   
,,,,,,, -   
,,,,,,, -   
,,,,,,, -   
,,,,,,, -   
,,,,,,, -   
,,,,,,, -   
,,,,,,, -   
,,,,,,, -   
,,,,,,, -   
,,,,,,, -   
,,,,,,, -   
,,,,,,, -   
,,,,,,, -   
,,,,,,, -   
,,,,,,, -   
,,,,,,, -   
,,,,,,, -   
,,,,,,, -   
,,,,,,, -   
,,,,,,, -   
,,,,,,, -   
,,,,,,, -   
,,,,,,, -   
,,,,,,, -   
,,,,,,, -   
,,,,,,, -   
,,,,,,, -   
,,,,,,, -   
,,,,,,, -   
,,,,,,, -   
,,,,,,, -   
,,,,,,, -   
,,,,,,, -   
,,,,,,, -   
,,,,,,, -   
,,,,,,, -   
,,,,,,, -   
,,,,,,, -   
,,,,,,, -   
,,,,,,, -   
,,,,,,, -   
,,,,,,, -   
,,,,,,, -   
,,,,,,, -   
,,,,,,, -   
,,,,,,, -   
,,,,,,, -   
,,,,,,, -   
,,,,,,, -   
,,,,,,, -   
,,,,,,, -   
,,,,,,, -   
,,,,,,, -   
,,,,,,, -   
,,,,,,, -   
,,,,,,, -   
,,,,,,, -   
,,,,,,, -   
,,,,,,, -   
,,,,,,, -   
,,,,,,, -   
,,,,,,, -   
,,,,,,, -   
,,,,,,, -   
,,,,,,, -   
,,,,,,, -   
,,,,,,, -   
,,,,,,, -   
,,,,,,, -   
,,,,,,, -   
,,,,,,, -   
,,,,,,, -   
,,,,,,, -   
,,,,,,, -   
,,,,,,, -   
,,,,,,, -   
,,,,,,, -   
,,,,,,, -   
,,,,,,, -   
,,,,,,, -   
,,,,,,, -   
,,,,,,, -   
,,,,,,, -   
,,,,,,, -   
,,,,,,, -   
,,,,,,, -   
,,,,,,, -   
,,,,,,, -   
,,,,,,, -   
,,,,,,, -   
,,,,,,, -   
,,,,,,, -   
,,,,,,, -   
,,,,,,, -   
,,,,,,, -   
,,,,,,, -   
,,,,,,, -   
,,,,,,, -   
,,,,,,, -   
,,,,,,, -   
,,,,,,, -   
,,,,,,, -   
,,,,,,, -   
,,,,,,, -   
,,,,,,, -   
,,,,,,, -   
,,,,,,, -   
,,,,,,, -   
,,,,,,, -   
,,,,,,, -   
,,,,,,, -   
,,,,,,, -   
,,,,,,, -   
,,,,,,, -   
,,,,,,, -   
,,,,,,, -   
,,,,,,, -   
,,,,,,, -   
,,,,,,, -   
,,,,,,, -   
,,,,,,, -   
,,,,,,, -   
,,,,,,, -   
,,,,,,, -   
,,,,,,, -   
,,,,,,, -   
,,,,,,, -   
,,,,,,, -   
,,,,,,, -   
,,,,,,, -   
,,,,,,, -   
,,,,,,, -   
,,,,,,, -   
,,,,,,, -   
,,,,,,, -   
,,,,,,, -   
,,,,,,, -   
,,,,,,, -   
,,,,,,, -   
,,,,,,, -   
,,,,,,, -   
,,,,,,, -   
,,,,,,, -   
,,,,,,, -   
,,,,,,, -   
,,,,,,, -   
,,,,,,, -   
,,,,,,, -   
,,,,,,, -   
,,,,,,, -   
,,,,,,, -   
,,,,,,, -   
,,,,,,, -   
,,,,,,, -   
,,,,,,, -   
,,,,,,, -   
,,,,,,, -   
,,,,,,, -   
,,,,,,, -   
,,,,,,, -   
,,,,,,, -   
,,,,,,, -   
,,,,,,, -   
,,,,,,, -   
,,,,,,, -   
,,,,,,, -   
,,,,,,, -   
,,,,,,, -   
,,,,,,, -   
,,,,,,, -   
,,,,,,, -   
,,,,,,, -   
,,,,,,, -   
,,,,,,, -   
,,,,,,, -   
,,,,,,, -   
,,,,,,, -   
,,,,,,, -   
,,,,,,, -   
,,,,,,, -   
,,,,,,, -   
,,,,,,, -   
,,,,,,, -   
,,,,,,, -   
,,,,,,, -   
,,,,,,, -   
,,,,,,, -   
,,,,,,, -   
,,,,,,, -   
,,,,,,, -   
,,,,,,, -   
,,,,,,, -   
,,,,,,, -   
,,,,,,, -   
,,,,,,, -   
,,,,,,, -   
,,,,,,, -   
,,,,,,, -   
,,,,,,, -   
,,,,,,, -   
,,,,,,, -   
,,,,,,, -   
,,,,,,, -   
,,,,,,, -   
,,,,,,, -   
,,,,,,, -   
,,,,,,, -   
,,,,,,, -   
,,,,,,, -   
,,,,,,, -   
,,,,,,, -   
,,,,,,, -   
,,,,,,, -   
,,,,,,, -   
,,,,,,, -   
,,,,,,, -   
,,,,,,, -   
,,,,,,, -   
,,,,,,, -   
,,,,,,, -   
,,,,,,, -   
,,,,,,, -   
,,,,,,, -   
,,,,,,, -   
,,,,,,, -   
,,,,,,, -   
,,,,,,, -   
,,,,,,, -   
,,,,,,, -   
,,,,,,, -   
,,,,,,, -   
,,,,,,, -   
,,,,,,, -   
,,,,,,, -   
,,,,,,, -   
,,,,,,, -   
,,,,,,, -   
,,,,,,, -   
,,,,,,, -   
,,,,,,, -   
,,,,,,, -   
,,,,,,, -   
,,,,,,, -   
,,,,,,, -   
,,,,,,, -   
,,,,,,, -   
,,,,,,, -   
,,,,,,, -   
,,,,,,, -   
,,,,,,, -   
,,,,,,, -   
,,,,,,, -   
,,,,,,, -   
,,,,,,, -   
,,,,,,, -   
,,,,,,, -   
,,,,,,, -   
,,,,,,, -   
,,,,,,, -   
,,,,,,, -   
,,,,,,, -   
,,,,,,, -   
,,,,,,, -   
,,,,,,, -   
,,,,,,, -   
,,,,,,, -   
,,,,,,, -   
,,,,,,, -   
,,,,,,, -   
,,,,,,, -   
,,,,,,, -   
,,,,,,, -   
,,,,,,, -   
,,,,,,, -   
,,,,,,, -   
,,,,,,, -   
,,,,,,, -   
,,,,,,, -   
,,,,,,, -   
,,,,,,, -   
,,,,,,, -   
,,,,,,, -   
,,,,,,, -   
,,,,,,, -   
,,,,,,, -   
,,,,,,, -   
,,,,,,, -   
,,,,,,, -   
,,,,,,, -   
,,,,,,, -   
,,,,,,, -   
,,,,,,, -   
,,,,,,, -   
,,,,,,, -   
,,,,,,, -   
,,,,,,, -   
,,,,,,, -   
,,,,,,, -   
,,,,,,, -   
,,,,,,, -   
,,,,,,, -   
,,,,,,, -   
,,,,,,, -   
,,,,,,, -   
,,,,,,, -   
,,,,,,, -   
,,,,,,, -   
,,,,,,, -   
,,,,,,, -   
,,,,,,, -   
,,,,,,, -   
,,,,,,, -   
,,,,,,, -   
,,,,,,, -   
,,,,,,, -   
,,,,,,, -   
,,,,,,, -   
,,,,,,, -   
,,,,,,, -   
,,,,,,, -   
,,,,,,, -   
,,,,,,, -   
,,,,,,, -   
,,,,,,, -   
,,,,,,, -   
,,,,,,, -   
,,,,,,, -   
,,,,,,, -   
,,,,,,, -   
,,,,,,, -   
,,,,,,, -   
,,,,,,, -   
,,,,,,, -   
,,,,,,, -   
,,,,,,, -   
,,,,,,, -   
,,,,,,, -   
,,,,,,, -   
,,,,,,, -   
,,,,,,, -   
,,,,,,, -   
,,,,,,, -   
,,,,,,, -   
,,,,,,, -   
,,,,,,, -   
,,,,,,, -   
,,,,,,, -   
,,,,,,, -   
,,,,,,, -   
,,,,,,, -   
,,,,,,, -   
,,,,,,, -   
,,,,,,, -   
,,,,,,, -   
,,,,,,, -   
,,,,,,, -   
,,,,,,, -   
,,,,,,, -   
,,,,,,, -   
,,,,,,, -   
,,,,,,, -   
,,,,,,, -   
,,,,,,, -   
,,,,,,, -   
,,,,,,, -   
,,,,,,, -   
,,,,,,, -   
,,,,,,, -   
,,,,,,, -   
,,,,,,, -   
,,,,,,, -   
,,,,,,, -   
,,,,,,, -   
,,,,,,, -   
,,,,,,, -   
,,,,,,, -   
,,,,,,, -   
,,,,,,, -   
,,,,,,, -   
,,,,,,, -   
,,,,,,, -   
,,,,,,, -   
,,,,,,, -   
,,,,,,, -   
,,,,,,, -   
,,,,,,, -   
,,,,,,, -   
,,,,,,, -   
,,,,,,, -   
,,,,,,, -   
,,,,,,, -   
,,,,,,, -   
,,,,,,, -   
,,,,,,, -   
,,,,,,, -   
,,,,,,, -   
,,,,,,, -   
,,,,,,, -   
,,,,,,, -   
,,,,,,, -   
,,,,,,, -   
,,,,,,, -   
,,,,,,, -   
,,,,,,, -   
,,,,,,, -   
,,,,,,, -   
,,,,,,, -   
,,,,,,, -   
,,,,,,, -   
,,,,,,, -   
,,,,,,, -   
,,,,,,, -   
,,,,,,, -   
,,,,,,, -   
,,,,,,, -   
,,,,,,, -   
,,,,,,, -   
,,,,,,, -   
,,,,,,, -   
,,,,,,, -   
,,,,,,, -   
,,,,,,, -   
,,,,,,, -   
,,,,,,, -   
,,,,,,, -   
,,,,,,, -   
,,,,,,, -   
,,,,,,, -   
,,,,,,, -   
,,,,,,, -   
,,,,,,, -   
,,,,,,, -   
,,,,,,, -   
,,,,,,, -   
,,,,,,, -   
,,,,,,, -   
,,,,,,, -   
,,,,,,, -   
,,,,,,, -   
,,,,,,, -   
,,,,,,, -   
,,,,,,, -   
,,,,,,, -   
,,,,,,, -   
,,,,,,, -   
,,,,,,, -   
,,,,,,, -   
,,,,,,, -   
,,,,,,, -   
,,,,,,, -   
,,,,,,, -   
,,,,,,, -   
,,,,,,, -   
,,,,,,, -   
,,,,,,, -   
,,,,,,, -   
,,,,,,, -   
,,,,,,, -   
,,,,,,, -   
,,,,,,, -   
,,,,,,, -   
,,,,,,, -   
,,,,,,, -   
,,,,,,, -   
,,,,,,, -   
,,,,,,, -   
,,,,,,, -   
,,,,,,, -   
,,,,,,, -   
,,,,,,, -   
,,,,,,, -   
,,,,,,, -   
,,,,,,, -   
,,,,,,, -   
,,,,,,, -   
,,,,,,, -   
,,,,,,, -   
,,,,,,, -   
,,,,,,, -   
,,,,,,, -   
,,,,,,, -   
,,,,,,, -   
,,,,,,, -   
,,,,,,, -   
,,,,,,, -   
,,,,,,, -   
,,,,,,, -   
,,,,,,, -   
,,,,,,, -   
,,,,,,, -   
,,,,,,, -   
,,,,,,, -   
,,,,,,, -   
,,,,,,, -   
,,,,,,, -   
,,,,,,, -   
,,,,,,, -   
,,,,,,, -   
,,,,,,, -   
,,,,,,, -   
,,,,,,, -   
,,,,,,, -   
,,,,,,, -   
,,,,,,, -   
,,,,,,, -   
,,,,,,, -   
,,,,,,, -   
,,,,,,, -   
,,,,,,, -   
,,,,,,, -   
,,,,,,, -   
,,,,,,, -   
,,,,,,, -   
,,,,,,, -   
,,,,,,, -   
,,,,,,, -   
,,,,,,, -   
,,,,,,, -   
,,,,,,, -   
,,,,,,, -   
,,,,,,, -   
,,,,,,, -   
,,,,,,, -   
,,,,,,, -   
,,,,,,, -   
,,,,,,, -   
,,,,,,, -   
,,,,,,, -   
,,,,,,, -   
,,,,,,, -   
,,,,,,, -   
,,,,,,, -   
,,,,,,, -   
,,,,,,, -   
,,,,,,, -   
,,,,,,, -   
,,,,,,, -   
,,,,,,, -   
,,,,,,, -   
,,,,,,, -   
,,,,,,, -   
,,,,,,, -   
,,,,,,, -   
,,,,,,, -   
,,,,,,, -   
,,,,,,, -   
,,,,,,, -   
,,,,,,, -   
,,,,,,, -   
,,,,,,, -   
,,,,,,, -   
,,,,,,, -   
,,,,,,, -   
,,,,,,, -   
,,,,,,, -   
,,,,,,, -   
,,,,,,, -   
,,,,,,, -   
,,,,,,, -   
,,,,,,, -   
,,,,,,, -   
,,,,,,, -   
,,,,,,, -   
,,,,,,, -   
,,,,,,, -   
,,,,,,, -   
,,,,,,, -   
,,,,,,, -   
,,,,,,, -   
,,,,,,, -   
,,,,,,, -   
,,,,,,, -   
,,,,,,, -   
,,,,,,, -   
,,,,,,, -   
,,,,,,, -   
,,,,,,, -   
,,,,,,, -   
,,,,,,, -   
,,,,,,, -   
,,,,,,, -   
,,,,,,, -   
,,,,,,, -   
,,,,,,, -   
,,,,,,, -   
,,,,,,, -   
,,,,,,, -   
,,,,,,, -   
,,,,,,, -   
,,,,,,, -   
,,,,,,, -   
,,,,,,, -   
,,,,,,, -   
,,,,,,, -   
,,,,,,, -   
,,,,,,, -   
,,,,,,, -   
,,,,,,, -   
,,,,,,, -   
,,,,,,, -   
,,,,,,, -   
,,,,,,, -   
,,,,,,, -   
,,,,,,, -   
,,,,,,, -   
,,,,,,, -   
,,,,,,, -   
,,,,,,, -   
,,,,,,, -   
,,,,,,, -   
,,,,,,, -   
,,,,,,, -   
,,,,,,, -   
,,,,,,, -   
,,,,,,, -   
,,,,,,, -   
,,,,,,, -   
,,,,,,, -   
,,,,,,, -   
,,,,,,, -   
,,,,,,, -   
,,,,,,, -   
,,,,,,, -   
,,,,,,, -   
,,,,,,, -   
,,,,,,, -   
,,,,,,, -   
,,,,,,, -   
,,,,,,, -   
,,,,,,, -   
,,,,,,, -   
,,,,,,, -   
,,,,,,, -   
,,,,,,, -   
,,,,,,, -   
,,,,,,, -   
,,,,,,, -   
,,,,,,, -   
,,,,,,, -   
,,,,,,, -   
,,,,,,, -   
,,,,,,, -   
,,,,,,, -   
,,,,,,, -   
,,,,,,, -   
,,,,,,, -   
,,,,,,, -   
,,,,,,, -   
,,,,,,, -   
,,,,,,, -   
,,,,,,, -   
,,,,,,, -   
,,,,,,, -   
,,,,,,, -   
,,,,,,, -   
,,,,,,, -   
,,,,,,, -   
,,,,,,, -   
,,,,,,, -   
,,,,,,, -   
,,,,,,, -   
,,,,,,, -   
,,,,,,, -   
,,,,,,, -   
,,,,,,, -   
,,,,,,, -   
,,,,,,, -   
,,,,,,, -   
,,,,,,, -   
,,,,,,, -   
,,,,,,, -   
,,,,,,, -   
,,,,,,, -   
,,,,,,, -   
,,,,,,, -   
,,,,,,, -   
,,,,,,, -   
,,,,,,, -   
,,,,,,, -   
,,,,,,, -   
,,,,,,, -   
,,,,,,, -   
,,,,,,, -   
,,,,,,, -   
,,,,,,, -   
,,,,,,, -   
,,,,,,, -   
,,,,,,, -   
,,,,,,, -   
,,,,,,, -   
,,,,,,, -   
,,,,,,, -   
,,,,,,, -   
,,,,,,, -   
,,,,,,, -   
,,,,,,, -   
,,,,,,, -   
,,,,,,, -   
,,,,,,, -   
,,,,,,, -   
,,,,,,, -   
,,,,,,, -   
,,,,,,, -   
,,,,,,, -   
,,,,,,, -   
,,,,,,, -   
,,,,,,, -   
,,,,,,, -   
,,,,,,, -   
,,,,,,, -   
,,,,,,, -   
,,,,,,, -   
,,,,,,, -   
,,,,,,, -   
,,,,,,, -   
,,,,,,, -   
,,,,,,, -   
,,,,,,, -   
,,,,,,, -   
,,,,,,, -   
,,,,,,, -   
,,,,,,, -   
,,,,,,, -   
,,,,,,, -   
,,,,,,, -   
,,,,,,, -   
,,,,,,, -   
,,,,,,, -   
,,,,,,, -   
,,,,,,, -   
,,,,,,, -   
,,,,,,, -   
,,,,,,, -   
,,,,,,, -   
,,,,,,, -   
,,,,,,, -   
,,,,,,, -   
,,,,,,, -   
,,,,,,, -   
,,,,,,, -   
,,,,,,, -   
,,,,,,, -   
,,,,,,, -   
,,,,,,, -   
,,,,,,, -   
,,,,,,, -   
,,,,,,, -   
,,,,,,, -   
,,,,,,, -   
,,,,,,, -   
,,,,,,, -   
,,,,,,, -   
,,,,,,, -   
,,,,,,, -   
,,,,,,, -   
,,,,,,, -   
,,,,,,, -   
,,,,,,, -   
,,,,,,, -   
,,,,,,, -   
,,,,,,, -   
,,,,,,, -   
,,,,,,, -   
,,,,,,, -   
,,,,,,, -   
,,,,,,, -   
,,,,,,, -   
,,,,,,, -   
,,,,,,, -   
,,,,,,, -   
,,,,,,, -   
,,,,,,, -   
,,,,,,, -   
,,,,,,, -   
,,,,,,, -   
,,,,,,, -   
,,,,,,, -   
,,,,,,, -   
,,,,,,, -   
,,,,,,, -   
,,,,,,, -   
,,,,,,, -   
,,,,,,, -   
,,,,,,, -   
,,,,,,, -   
,,,,,,, -   
,,,,,,, -   
,,,,,,, -   
,,,,,,, -   
,,,,,,, -   
,,,,,,, -   
,,,,,,, -   
,,,,,,, -   
,,,,,,, -   
,,,,,,, -   
,,,,,,, -   
,,,,,,, -   
,,,,,,, -   
,,,,,,, -   
,,,,,,, -   
,,,,,,, -   
,,,,,,, -   
,,,,,,, -   
,,,,,,, -   
,,,,,,, -   
,,,,,,, -   
,,,,,,, -   
,,,,,,, -   
,,,,,,, -   
,,,,,,, -   
,,,,,,, -   
,,,,,,, -   
,,,,,,, -   
,,,,,,, -   
,,,,,,, -   
,,,,,,, -   
,,,,,,, -   
,,,,,,, -   
,,,,,,, -   
,,,,,,, -   
,,,,,,, -   
,,,,,,, -   
,,,,,,, -   
,,,,,,, -   
,,,,,,, -   
,,,,,,, -   
,,,,,,, -   
,,,,,,, -   
,,,,,,, -   
,,,,,,, -   
,,,,,,, -   
,,,,,,, -   
,,,,,,, -   
,,,,,,, -   
,,,,,,, -   
,,,,,,, -   
,,,,,,, -   
,,,,,,, -   
,,,,,,, -   
,,,,,,, -   
,,,,,,, -   
,,,,,,, -   
,,,,,,, -   
,,,,,,, -   
,,,,,,, -   
,,,,,,, -   
,,,,,,, -   
,,,,,,, -   
,,,,,,, -   
,,,,,,, -   
,,,,,,, -   
,,,,,,, -   
,,,,,,, -   
,,,,,,, -   
,,,,,,, -   
,,,,,,, -   
,,,,,,, -   
,,,,,,, -   
,,,,,,, -   
,,,,,,, -   
,,,,,,, -   
,,,,,,, -   
,,,,,,, -   
,,,,,,, -   
,,,,,,, -   
,,,,,,, -   
,,,,,,, -   
,,,,,,, -   
,,,,,,, -   
,,,,,,, -   
,,,,,,, -   
,,,,,,, -   
,,,,,,, -   
,,,,,,, -   
,,,,,,, -   
,,,,,,, -   
,,,,,,, -   
,,,,,,, -   
,,,,,,, -   
,,,,,,, -   
,,,,,,, -   
,,,,,,, -   
,,,,,,, -   
,,,,,,, -   
,,,,,,, -   
,,,,,,, -   
,,,,,,, -   
,,,,,,, -   
,,,,,,, -   
,,,,,,, -   
,,,,,,, -   
,,,,,,, -   
,,,,,,, -   
,,,,,,, -   
,,,,,,, -   
,,,,,,, -   
,,,,,,, -   
,,,,,,, -   
,,,,,,, -   
,,,,,,, -   
,,,,,,, -   
,,,,,,, -   
,,,,,,, -   
,,,,,,, -   
,,,,,,, -   
,,,,,,, -   
,,,,,,, -   
,,,,,,, -   
,,,,,,, -   
,,,,,,, -   
,,,,,,, -   
,,,,,,, -   
,,,,,,, -   
,,,,,,, -   
,,,,,,, -   
,,,,,,, -   
,,,,,,, -   
,,,,,,, -   
,,,,,,, -   
,,,,,,, -   
,,,,,,, -   
,,,,,,, -   
,,,,,,, -   
,,,,,,, -   
,,,,,,, -   
,,,,,,, -   
,,,,,,, -   
,,,,,,, -   
,,,,,,, -   
,,,,,,, -   
,,,,,,, -   
,,,,,,, -   
,,,,,,, -   
,,,,,,, -   
,,,,,,, -   
,,,,,,, -   
,,,,,,, -   
,,,,,,, -   
,,,,,,, -   
,,,,,,, -   
,,,,,,, -   
,,,,,,, -   
,,,,,,, -   
,,,,,,, -   
,,,,,,, -   
,,,,,,, -   
,,,,,,, -   
,,,,,,, -   
,,,,,,, -   
,,,,,,, -   
,,,,,,, -   
,,,,,,, -   
,,,,,,, -   
,,,,,,, -   
,,,,,,, -   
,,,,,,, -   
,,,,,,, -   
,,,,,,, -   
,,,,,,, -   
,,,,,,, -   
,,,,,,, -   
,,,,,,, -   
,,,,,,, -   
,,,,,,, -   
,,,,,,, -   
,,,,,,, -   
,,,,,,, -   
,,,,,,, -   
,,,,,,, -   
,,,,,,, -   
,,,,,,, -   
,,,,,,, -   
,,,,,,, -   
,,,,,,, -   
,,,,,,, -   
,,,,,,, -   
,,,,,,, -   
,,,,,,, -   
,,,,,,, -   
,,,,,,, -   
,,,,,,, -   
,,,,,,, -   
,,,,,,, -   
,,,,,,, -   
,,,,,,, -   
,,,,,,, -   
,,,,,,, -   
,,,,,,, -   
,,,,,,, -   
,,,,,,, -   
,,,,,,, -   
,,,,,,, -   
,,,,,,, -   
,,,,,,, -   
,,,,,,, -   
,,,,,,, -   
,,,,,,, -   
,,,,,,, -   
,,,,,,, -   
,,,,,,, -   
,,,,,,, -   
,,,,,,, -   
,,,,,,, -   
